Workbook

Sheet 控制頁面
A1: 請選擇需要查詢的公司
A3: 請輸入董監事持股月份 | D3: 2023/04/30
A5: 請輸入股價日期 | D5: 2023/05/16

Sheet 總表
A1: =" "&董監事持股狀況!G2&"投資概況" -> 遠壽投資概況
E5: =SUM(E8:E999) -> 313353568.5
A6: 公司代碼 | C6: 持股數 (千股) (千股) | D6: 股價 (元) | E6: 投資金額 (千元) | F6: 投資金額佔比(%) | G6: 排名
A8: =IF(董監事持股狀況!K2="","",董監事持股狀況!K2) -> 2891 中信金 | C8: =IF(董監事持股狀況!M2="","",董監事持股狀況!M2) -> 814000 | D8: =IFERROR(VLOOKUP(A8,股價!A:B,2,0),"") -> 23.55 | E8: =IFERROR(C8*D8,"") -> 19169700 | F8: =IFERROR(E8/$E$5*100,"") -> 6.117594286 | G8: =IF(F8="","",RANK(F8,$F$8:$F$999)) -> 1
A9: =IF(董監事持股狀況!K3="","",董監事持股狀況!K3) -> 2454 聯發科 | C9: =IF(董監事持股狀況!M3="","",董監事持股狀況!M3) -> 24748 | D9: =IFERROR(VLOOKUP(A9,股價!A:B,2,0),"") -> 680 | E9: =IFERROR(C9*D9,"") -> 16828640 | F9: 5.370495726 | G9: 2
A10: =IF(董監事持股狀況!K4="","",董監事持股狀況!K4) -> 3045 台灣大 | C10: =IF(董監事持股狀況!M4="","",董監事持股狀況!M4) -> 150880 | D10: =IFERROR(VLOOKUP(A10,股價!A:B,2,0),"") -> 103.5 | E10: 15616080 | F10: 4.983533482 | G10: 3
A11: =IF(董監事持股狀況!K5="","",董監事持股狀況!K5) -> 2002 中鋼 | C11: =IF(董監事持股狀況!M5="","",董監事持股狀況!M5) -> 393777 | D11: =IFERROR(VLOOKUP(A11,股價!A:B,2,0),"") -> 29.2 | E11: 11498288.4 | F11: 3.669429538 | G11: 4
A12: =IF(董監事持股狀況!K6="","",董監事持股狀況!K6) -> 2886 兆豐金 | C12: =IF(董監事持股狀況!M6="","",董監事持股狀況!M6) -> 270088 | D12: =IFERROR(VLOOKUP(A12,股價!A:B,2,0),"") -> 35.15 | E12: 9493593.2 | F12: 3.029674513 | G12: 5
A13: =IF(董監事持股狀況!K7="","",董監事持股狀況!K7) -> 3034 聯詠 | C13: =IF(董監事持股狀況!M7="","",董監事持股狀況!M7) -> 22447 | D13: =IFERROR(VLOOKUP(A13,股價!A:B,2,0),"") -> 406 | E13: 9113482 | F13: 2.908370262 | G13: 6
A14: =IF(董監事持股狀況!K8="","",董監事持股狀況!K8) -> 1326 台化 | C14: =IF(董監事持股狀況!M8="","",董監事持股狀況!M8) -> 130301 | D14: =IFERROR(VLOOKUP(A14,股價!A:B,2,0),"") -> 69.1 | E14: 9003799.1 | F14: 2.873367342 | G14: 7
A15: =IF(董監事持股狀況!K9="","",董監事持股狀況!K9) -> 2303 聯電 | C15: =IF(董監事持股狀況!M9="","",董監事持股狀況!M9) -> 172449 | D15: =IFERROR(VLOOKUP(A15,股價!A:B,2,0),"") -> 48.8 | E15: 8415511.2 | F15: 2.685628009 | G15: 8
A16: =IF(董監事持股狀況!K10="","",董監事持股狀況!K10) -> 8454 富邦媒 | C16: =IF(董監事持股狀況!M10="","",董監事持股狀況!M10) -> 10374 | D16: =IFERROR(VLOOKUP(A16,股價!A:B,2,0),"") -> 716 | E16: 7427784 | F16: 2.37041628 | G16: 9
A17: =IF(董監事持股狀況!K11="","",董監事持股狀況!K11) -> 2412 中華電 | C17: =IF(董監事持股狀況!M11="","",董監事持股狀況!M11) -> 54639 | D17: =IFERROR(VLOOKUP(A17,股價!A:B,2,0),"") -> 126 | E17: 6884514 | F17: 2.197043434 | G17: 10
A18: =IF(董監事持股狀況!K12="","",董監事持股狀況!K12) -> 2379 瑞昱 | C18: =IF(董監事持股狀況!M12="","",董監事持股狀況!M12) -> 17661 | D18: =IFERROR(VLOOKUP(A18,股價!A:B,2,0),"") -> 374 | E18: 6605214 | F18: 2.107910892 | G18: 11
A19: =IF(董監事持股狀況!K13="","",董監事持股狀況!K13) -> 2885 元大金 | C19: =IF(董監事持股狀況!M13="","",董監事持股狀況!M13) -> 286278 | D19: =IFERROR(VLOOKUP(A19,股價!A:B,2,0),"") -> 22.95 | E19: 6570080.1 | F19: 2.096698669 | G19: 12
A20: =IF(董監事持股狀況!K14="","",董監事持股狀況!K14) -> 2890 永豐金 | C20: =IF(董監事持股狀況!M14="","",董監事持股狀況!M14) -> 311526 | D20: =IFERROR(VLOOKUP(A20,股價!A:B,2,0),"") -> 17.1 | E20: 5327094.6 | F20: 1.700026786 | G20: 13
A21: =IF(董監事持股狀況!K15="","",董監事持股狀況!K15) -> 5876 上海商銀 | C21: =IF(董監事持股狀況!M15="","",董監事持股狀況!M15) -> 112697 | D21: =IFERROR(VLOOKUP(A21,股價!A:B,2,0),"") -> 46.55 | E21: 5246045.35 | F21: 1.674161675 | G21: 14
A22: =IF(董監事持股狀況!K16="","",董監事持股狀況!K16) -> 2912 統一超 | C22: =IF(董監事持股狀況!M16="","",董監事持股狀況!M16) -> 17361 | D22: =IFERROR(VLOOKUP(A22,股價!A:B,2,0),"") -> 289.5 | E22: 5026009.5 | F22: 1.603942002 | G22: 15
A23: =IF(董監事持股狀況!K17="","",董監事持股狀況!K17) -> 2892 第一金 | C23: =IF(董監事持股狀況!M17="","",董監事持股狀況!M17) -> 177684 | D23: =IFERROR(VLOOKUP(A23,股價!A:B,2,0),"") -> 27.55 | E23: 4895194.2 | F23: 1.562195134 | G23: 16
A24: =IF(董監事持股狀況!K18="","",董監事持股狀況!K18) -> 8464 億豐 | C24: =IF(董監事持股狀況!M18="","",董監事持股狀況!M18) -> 13950 | D24: =IFERROR(VLOOKUP(A24,股價!A:B,2,0),"") -> 338 | E24: 4715100 | F24: 1.504721974 | G24: 17
A25: =IF(董監事持股狀況!K19="","",董監事持股狀況!K19) -> 3702 大聯大 | C25: =IF(董監事持股狀況!M19="","",董監事持股狀況!M19) -> 93413 | D25: =IFERROR(VLOOKUP(A25,股價!A:B,2,0),"") -> 50.3 | E25: 4698673.9 | F25: 1.49947994 | G25: 18
A26: =IF(董監事持股狀況!K20="","",董監事持股狀況!K20) -> 3293 鈊象 | C26: =IF(董監事持股狀況!M20="","",董監事持股狀況!M20) -> 7120 | D26: =IFERROR(VLOOKUP(A26,股價!A:B,2,0),"") -> 546 | E26: 3887520 | F26: 1.240617753 | G26: 19
A27: =IF(董監事持股狀況!K21="","",董監事持股狀況!K21) -> 4938 和碩 | C27: =IF(董監事持股狀況!M21="","",董監事持股狀況!M21) -> 54051 | D27: =IFERROR(VLOOKUP(A27,股價!A:B,2,0),"") -> 71.3 | E27: 3853836.3 | F27: 1.22986833 | G27: 20
A28: =IF(董監事持股狀況!K22="","",董監事持股狀況!K22) -> 1590 亞德客-KY | C28: =IF(董監事持股狀況!M22="","",董監事持股狀況!M22) -> 3401 | D28: =IFERROR(VLOOKUP(A28,股價!A:B,2,0),"") -> 1060 | E28: 3605060 | F28: 1.150476766 | G28: 21
A29: =IF(董監事持股狀況!K23="","",董監事持股狀況!K23) -> 4966 譜瑞-KY | C29: =IF(董監事持股狀況!M23="","",董監事持股狀況!M23) -> 3875 | D29: =IFERROR(VLOOKUP(A29,股價!A:B,2,0),"") -> 926 | E29: 3588250 | F29: 1.145112219 | G29: 22
A30: =IF(董監事持股狀況!K24="","",董監事持股狀況!K24) -> 4743 合一 | C30: =IF(董監事持股狀況!M24="","",董監事持股狀況!M24) -> 15392 | D30: =IFERROR(VLOOKUP(A30,股價!A:B,2,0),"") -> 226 | E30: 3478592 | F30: 1.110117245 | G30: 23
A31: =IF(董監事持股狀況!K25="","",董監事持股狀況!K25) -> 6488 環球晶 | C31: =IF(董監事持股狀況!M25="","",董監事持股狀況!M25) -> 6534 | D31: =IFERROR(VLOOKUP(A31,股價!A:B,2,0),"") -> 475.5 | E31: 3106917 | F31: 0.9915052238 | G31: 24
A32: =IF(董監事持股狀況!K26="","",董監事持股狀況!K26) -> 2357 華碩 | C32: =IF(董監事持股狀況!M26="","",董監事持股狀況!M26) -> 10027 | D32: =IFERROR(VLOOKUP(A32,股價!A:B,2,0),"") -> 303.5 | E32: 3043194.5 | F32: 0.9711695689 | G32: 25
A33: =IF(董監事持股狀況!K27="","",董監事持股狀況!K27) -> 2377 微星 | C33: =IF(董監事持股狀況!M27="","",董監事持股狀況!M27) -> 19681 | D33: =IFERROR(VLOOKUP(A33,股價!A:B,2,0),"") -> 154.5 | E33: 3040714.5 | F33: 0.9703781307 | G33: 26
A34: =IF(董監事持股狀況!K28="","",董監事持股狀況!K28) -> 1476 儒鴻 | C34: =IF(董監事持股狀況!M28="","",董監事持股狀況!M28) -> 6196 | D34: =IFERROR(VLOOKUP(A34,股價!A:B,2,0),"") -> 479 | E34: 2967884 | F34: 0.9471358551 | G34: 27
A35: =IF(董監事持股狀況!K29="","",董監事持股狀況!K29) -> 6592 和潤企業 | C35: =IF(董監事持股狀況!M29="","",董監事持股狀況!M29) -> 22780 | D35: =IFERROR(VLOOKUP(A35,股價!A:B,2,0),"") -> 126 | E35: 2870280 | F35: 0.9159876539 | G35: 28
A36: =IF(董監事持股狀況!K30="","",董監事持股狀況!K30) -> 6121 新普 | C36: =IF(董監事持股狀況!M30="","",董監事持股狀況!M30) -> 9246 | D36: =IFERROR(VLOOKUP(A36,股價!A:B,2,0),"") -> 307.5 | E36: 2843145 | F36: 0.9073281067 | G36: 29
A37: =IF(董監事持股狀況!K31="","",董監事持股狀況!K31) -> 1477 聚陽 | C37: =IF(董監事持股狀況!M31="","",董監事持股狀況!M31) -> 12576 | D37: =IFERROR(VLOOKUP(A37,股價!A:B,2,0),"") -> 225.5 | E37: 2835888 | F37: 0.9050121925 | G37: 30
A38: =IF(董監事持股狀況!K32="","",董監事持股狀況!K32) -> 3533 嘉澤 | C38: =IF(董監事持股狀況!M32="","",董監事持股狀況!M32) -> 3149 | D38: =IFERROR(VLOOKUP(A38,股價!A:B,2,0),"") -> 892 | E38: 2808908 | F38: 0.8964021102 | G38: 31
A39: =IF(董監事持股狀況!K33="","",董監事持股狀況!K33) -> 3023 信邦 | C39: =IF(董監事持股狀況!M33="","",董監事持股狀況!M33) -> 7750 | D39: =IFERROR(VLOOKUP(A39,股價!A:B,2,0),"") -> 357 | E39: 2766750 | F39: 0.8829482982 | G39: 32
A40: =IF(董監事持股狀況!K34="","",董監事持股狀況!K34) -> 9933 中鼎 | C40: =IF(董監事持股狀況!M34="","",董監事持股狀況!M34) -> 60129 | D40: =IFERROR(VLOOKUP(A40,股價!A:B,2,0),"") -> 40.8 | E40: 2453263.2 | F40: 0.7829057802 | G40: 33
A41: =IF(董監事持股狀況!K35="","",董監事持股狀況!K35) -> 2059 川湖 | C41: =IF(董監事持股狀況!M35="","",董監事持股狀況!M35) -> 5716 | D41: =IFERROR(VLOOKUP(A41,股價!A:B,2,0),"") -> 421.5 | E41: 2409294 | F41: 0.768873963 | G41: 34
A42: =IF(董監事持股狀況!K36="","",董監事持股狀況!K36) -> 2634 漢翔 | C42: =IF(董監事持股狀況!M36="","",董監事持股狀況!M36) -> 43570 | D42: =IFERROR(VLOOKUP(A42,股價!A:B,2,0),"") -> 53.7 | E42: 2339709 | F42: 0.7466674184 | G42: 35
A43: =IF(董監事持股狀況!K37="","",董監事持股狀況!K37) -> 9904 寶成 | C43: =IF(董監事持股狀況!M37="","",董監事持股狀況!M37) -> 73000 | D43: =IFERROR(VLOOKUP(A43,股價!A:B,2,0),"") -> 31.25 | E43: 2281250 | F43: 0.7280114955 | G43: 36
A44: =IF(董監事持股狀況!K38="","",董監事持股狀況!K38) -> 9941 裕融 | C44: =IF(董監事持股狀況!M38="","",董監事持股狀況!M38) -> 11995 | D44: =IFERROR(VLOOKUP(A44,股價!A:B,2,0),"") -> 190 | E44: 2279050 | F44: 0.7273094132 | G44: 37
A45: =IF(董監事持股狀況!K39="","",董監事持股狀況!K39) -> 3665 貿聯-KY | C45: =IF(董監事持股狀況!M39="","",董監事持股狀況!M39) -> 8715 | D45: =IFERROR(VLOOKUP(A45,股價!A:B,2,0),"") -> 259.5 | E45: 2261542.5 | F45: 0.721722274 | G45: 38
A46: =IF(董監事持股狀況!K40="","",董監事持股狀況!K40) -> 2449 京元電子 | C46: =IF(董監事持股狀況!M40="","",董監事持股狀況!M40) -> 48092 | D46: =IFERROR(VLOOKUP(A46,股價!A:B,2,0),"") -> 45.75 | E46: 2200209 | F46: 0.7021490168 | G46: 39
A47: =IF(董監事持股狀況!K41="","",董監事持股狀況!K41) -> 8299 群聯 | C47: =IF(董監事持股狀況!M41="","",董監事持股狀況!M41) -> 5709 | D47: =IFERROR(VLOOKUP(A47,股價!A:B,2,0),"") -> 373.5 | E47: 2132311.5 | F47: 0.6804810012 | G47: 40
A48: =IF(董監事持股狀況!K42="","",董監事持股狀況!K42) -> 2376 技嘉 | C48: =IF(董監事持股狀況!M42="","",董監事持股狀況!M42) -> 14545 | D48: =IFERROR(VLOOKUP(A48,股價!A:B,2,0),"") -> 144.5 | E48: 2101752.5 | F48: 0.6707287587 | G48: 41
A49: =IF(董監事持股狀況!K43="","",董監事持股狀況!K43) -> 4128 中天 | C49: =IF(董監事持股狀況!M43="","",董監事持股狀況!M43) -> 32043 | D49: =IFERROR(VLOOKUP(A49,股價!A:B,2,0),"") -> 60.8 | E49: 1948214.4 | F49: 0.6217304017 | G49: 42
A50: =IF(董監事持股狀況!K44="","",董監事持股狀況!K44) -> 1707 葡萄王 | C50: =IF(董監事持股狀況!M44="","",董監事持股狀況!M44) -> 10757 | D50: =IFERROR(VLOOKUP(A50,股價!A:B,2,0),"") -> 175 | E50: 1882475 | F50: 0.600751097 | G50: 43
A51: =IF(董監事持股狀況!K45="","",董監事持股狀況!K45) -> 3231 緯創 | C51: =IF(董監事持股狀況!M45="","",董監事持股狀況!M45) -> 38000 | D51: =IFERROR(VLOOKUP(A51,股價!A:B,2,0),"") -> 48.45 | E51: 1841100 | F51: 0.5875471625 | G51: 44
A52: =IF(董監事持股狀況!K46="","",董監事持股狀況!K46) -> 9802 鈺齊-KY | C52: =IF(董監事持股狀況!M46="","",董監事持股狀況!M46) -> 14893 | D52: =IFERROR(VLOOKUP(A52,股價!A:B,2,0),"") -> 117.5 | E52: 1749927.5 | F52: 0.5584514351 | G52: 45
A53: =IF(董監事持股狀況!K47="","",董監事持股狀況!K47) -> 2609 陽明 | C53: =IF(董監事持股狀況!M47="","",董監事持股狀況!M47) -> 27546 | D53: =IFERROR(VLOOKUP(A53,股價!A:B,2,0),"") -> 60.9 | E53: 1677551.4 | F53: 0.5353541714 | G53: 46
A54: =IF(董監事持股狀況!K48="","",董監事持股狀況!K48) -> 6176 瑞儀 | C54: =IF(董監事持股狀況!M48="","",董監事持股狀況!M48) -> 14600 | D54: =IFERROR(VLOOKUP(A54,股價!A:B,2,0),"") -> 114 | E54: 1664400 | F54: 0.5311571871 | G54: 47
A55: =IF(董監事持股狀況!K49="","",董監事持股狀況!K49) -> 6472 保瑞 | C55: =IF(董監事持股狀況!M49="","",董監事持股狀況!M49) -> 2018 | D55: =IFERROR(VLOOKUP(A55,股價!A:B,2,0),"") -> 787 | E55: 1588166 | F55: 0.5068287583 | G55: 48
A56: =IF(董監事持股狀況!K50="","",董監事持股狀況!K50) -> 3406 玉晶光 | C56: =IF(董監事持股狀況!M50="","",董監事持股狀況!M50) -> 4000 | D56: =IFERROR(VLOOKUP(A56,股價!A:B,2,0),"") -> 394 | E56: 1576000 | F56: 0.5029462431 | G56: 49
A57: =IF(董監事持股狀況!K51="","",董監事持股狀況!K51) -> 8070 長華* | C57: =IF(董監事持股狀況!M51="","",董監事持股狀況!M51) -> 45080 | D57: =IFERROR(VLOOKUP(A57,股價!A:B,2,0),"") -> 34.25 | E57: 1543990 | F57: 0.4927309453 | G57: 50
A58: =IF(董監事持股狀況!K52="","",董監事持股狀況!K52) -> 3189 景碩 | C58: =IF(董監事持股狀況!M52="","",董監事持股狀況!M52) -> 14223 | D58: =IFERROR(VLOOKUP(A58,股價!A:B,2,0),"") -> 108 | E58: 1536084 | F58: 0.4902079168 | G58: 51
A59: =IF(董監事持股狀況!K53="","",董監事持股狀況!K53) -> 5347 世界 | C59: =IF(董監事持股狀況!M53="","",董監事持股狀況!M53) -> 16575 | D59: =IFERROR(VLOOKUP(A59,股價!A:B,2,0),"") -> 90.3 | E59: 1496722.5 | F59: 0.4776465471 | G59: 52
A60: =IF(董監事持股狀況!K54="","",董監事持股狀況!K54) -> 2408 南亞科 | C60: =IF(董監事持股狀況!M54="","",董監事持股狀況!M54) -> 22755 | D60: =IFERROR(VLOOKUP(A60,股價!A:B,2,0),"") -> 64.6 | E60: 1469973 | F60: 0.4691100239 | G60: 53
A61: =IF(董監事持股狀況!K55="","",董監事持股狀況!K55) -> 9917 中保科 | C61: =IF(董監事持股狀況!M55="","",董監事持股狀況!M55) -> 13161 | D61: =IFERROR(VLOOKUP(A61,股價!A:B,2,0),"") -> 111 | E61: 1460871 | F61: 0.4662053179 | G61: 54
A62: =IF(董監事持股狀況!K56="","",董監事持股狀況!K56) -> 4763 材料-KY | C62: =IF(董監事持股狀況!M56="","",董監事持股狀況!M56) -> 2791 | D62: =IFERROR(VLOOKUP(A62,股價!A:B,2,0),"") -> 520 | E62: 1451320 | F62: 0.4631573233 | G62: 55
A63: =IF(董監事持股狀況!K57="","",董監事持股狀況!K57) -> 2501 國建 | C63: =IF(董監事持股狀況!M57="","",董監事持股狀況!M57) -> 87000 | D63: =IFERROR(VLOOKUP(A63,股價!A:B,2,0),"") -> 16.3 | E63: 1418100 | F63: 0.4525558803 | G63: 56
A64: =IF(董監事持股狀況!K58="","",董監事持股狀況!K58) -> 1723 中碳 | C64: =IF(董監事持股狀況!M58="","",董監事持股狀況!M58) -> 12578 | D64: =IFERROR(VLOOKUP(A64,股價!A:B,2,0),"") -> 112 | E64: 1408736 | F64: 0.4495675626 | G64: 57
A65: =IF(董監事持股狀況!K59="","",董監事持股狀況!K59) -> 9914 美利達 | C65: =IF(董監事持股狀況!M59="","",董監事持股狀況!M59) -> 7930 | D65: =IFERROR(VLOOKUP(A65,股價!A:B,2,0),"") -> 173 | E65: 1371890 | F65: 0.4378089603 | G65: 58
A66: =IF(董監事持股狀況!K60="","",董監事持股狀況!K60) -> 3592 瑞鼎 | C66: =IF(董監事持股狀況!M60="","",董監事持股狀況!M60) -> 4045 | D66: =IFERROR(VLOOKUP(A66,股價!A:B,2,0),"") -> 336.5 | E66: 1361142.5 | F66: 0.4343791286 | G66: 59
A67: =IF(董監事持股狀況!K61="","",董監事持股狀況!K61) -> 6670 復盛應用 | C67: =IF(董監事持股狀況!M61="","",董監事持股狀況!M61) -> 6299 | D67: =IFERROR(VLOOKUP(A67,股價!A:B,2,0),"") -> 211.5 | E67: 1332238.5 | F67: 0.4251550434 | G67: 60
A68: =IF(董監事持股狀況!K62="","",董監事持股狀況!K62) -> 1904 正隆 | C68: =IF(董監事持股狀況!M62="","",董監事持股狀況!M62) -> 41865 | D68: =IFERROR(VLOOKUP(A68,股價!A:B,2,0),"") -> 31.7 | E68: 1327120.5 | F68: 0.4235217446 | G68: 61
A69: =IF(董監事持股狀況!K63="","",董監事持股狀況!K63) -> 9938 百和 | C69: =IF(董監事持股狀況!M63="","",董監事持股狀況!M63) -> 23363 | D69: =IFERROR(VLOOKUP(A69,股價!A:B,2,0),"") -> 54.9 | E69: 1282628.7 | F69: 0.409323151 | G69: 62
A70: =IF(董監事持股狀況!K64="","",董監事持股狀況!K64) -> 3703 欣陸 | C70: =IF(董監事持股狀況!M64="","",董監事持股狀況!M64) -> 41078 | D70: =IFERROR(VLOOKUP(A70,股價!A:B,2,0),"") -> 30.7 | E70: 1261094.6 | F70: 0.4024510096 | G70: 63
A71: =IF(董監事持股狀況!K65="","",董監事持股狀況!K65) -> 9921 巨大 | C71: =IF(董監事持股狀況!M65="","",董監事持股狀況!M65) -> 6208 | D71: =IFERROR(VLOOKUP(A71,股價!A:B,2,0),"") -> 201 | E71: 1247808 | F71: 0.3982108792 | G71: 64
A72: =IF(董監事持股狀況!K66="","",董監事持股狀況!K66) -> 6781 AES-KY | C72: =IF(董監事持股狀況!M66="","",董監事持股狀況!M66) -> 1905 | D72: =IFERROR(VLOOKUP(A72,股價!A:B,2,0),"") -> 652 | E72: 1242060 | F72: =IFERROR(E72/$E$5*100,"") -> 0.3963765296 | G72: =IF(F72="","",RANK(F72,$F$8:$F$999)) -> 65
A73: =IF(董監事持股狀況!K67="","",董監事持股狀況!K67) -> 6414 樺漢 | C73: =IF(董監事持股狀況!M67="","",董監事持股狀況!M67) -> 4457 | D73: =IFERROR(VLOOKUP(A73,股價!A:B,2,0),"") -> 277 | E73: =IFERROR(C73*D73,"") -> 1234589 | F73: 0.3939923219 | G73: 66
A74: =IF(董監事持股狀況!K68="","",董監事持股狀況!K68) -> 2504 國產 | C74: =IF(董監事持股狀況!M68="","",董監事持股狀況!M68) -> 41015 | D74: =IFERROR(VLOOKUP(A74,股價!A:B,2,0),"") -> 28.6 | E74: 1173029 | F74: 0.3743467821 | G74: 67
A75: =IF(董監事持股狀況!K69="","",董監事持股狀況!K69) -> 5534 長虹 | C75: =IF(董監事持股狀況!M69="","",董監事持股狀況!M69) -> 14445 | D75: =IFERROR(VLOOKUP(A75,股價!A:B,2,0),"") -> 78.4 | E75: 1132488 | F75: 0.3614090006 | G75: 68
A76: =IF(董監事持股狀況!K70="","",董監事持股狀況!K70) -> 6548 長科* | C76: =IF(董監事持股狀況!M70="","",董監事持股狀況!M70) -> 27415 | D76: =IFERROR(VLOOKUP(A76,股價!A:B,2,0),"") -> 40.95 | E76: 1122644.25 | F76: 0.3582675811 | G76: 69
A77: =IF(董監事持股狀況!K71="","",董監事持股狀況!K71) -> 1304 台聚 | C77: =IF(董監事持股狀況!M71="","",董監事持股狀況!M71) -> 47506 | D77: =IFERROR(VLOOKUP(A77,股價!A:B,2,0),"") -> 23.2 | E77: 1102139.2 | F77: 0.3517238388 | G77: 70
A78: =IF(董監事持股狀況!K72="","",董監事持股狀況!K72) -> 8422 可寧衛 | C78: =IF(董監事持股狀況!M72="","",董監事持股狀況!M72) -> 5425 | D78: =IFERROR(VLOOKUP(A78,股價!A:B,2,0),"") -> 202 | E78: 1095850 | F78: 0.3497167769 | G78: 71
A79: =IF(董監事持股狀況!K73="","",董監事持股狀況!K73) -> 2645 長榮航太 | C79: =IF(董監事持股狀況!M73="","",董監事持股狀況!M73) -> 10580 | D79: =IFERROR(VLOOKUP(A79,股價!A:B,2,0),"") -> 102.5 | E79: 1084450 | F79: 0.346078714 | G79: 72
A80: =IF(董監事持股狀況!K74="","",董監事持股狀況!K74) -> 9911 櫻花 | C80: =IF(董監事持股狀況!M74="","",董監事持股狀況!M74) -> 16613 | D80: =IFERROR(VLOOKUP(A80,股價!A:B,2,0),"") -> 64.2 | E80: 1066554.6 | F80: 0.340367785 | G80: 73
A81: =IF(董監事持股狀況!K75="","",董監事持股狀況!K75) -> 2106 建大 | C81: =IF(董監事持股狀況!M75="","",董監事持股狀況!M75) -> 34914 | D81: =IFERROR(VLOOKUP(A81,股價!A:B,2,0),"") -> 30.4 | E81: 1061385.6 | F81: 0.3387182106 | G81: 74
A82: =IF(董監事持股狀況!K76="","",董監事持股狀況!K76) -> 2548 華固 | C82: =IF(董監事持股狀況!M76="","",董監事持股狀況!M76) -> 11000 | D82: =IFERROR(VLOOKUP(A82,股價!A:B,2,0),"") -> 96.3 | E82: 1059300 | F82: 0.3380526366 | G82: 75
A83: =IF(董監事持股狀況!K77="","",董監事持股狀況!K77) -> 4919 新唐 | C83: =IF(董監事持股狀況!M77="","",董監事持股狀況!M77) -> 8322 | D83: =IFERROR(VLOOKUP(A83,股價!A:B,2,0),"") -> 121.5 | E83: 1011123 | F83: 0.3226779912 | G83: 76
A84: =IF(董監事持股狀況!K78="","",董監事持股狀況!K78) -> 5288 豐祥-KY | C84: =IF(董監事持股狀況!M78="","",董監事持股狀況!M78) -> 5217 | D84: =IFERROR(VLOOKUP(A84,股價!A:B,2,0),"") -> 188 | E84: 980796 | F84: 0.3129997864 | G84: 77
A85: =IF(董監事持股狀況!K79="","",董監事持股狀況!K79) -> 4766 南寶 | C85: =IF(董監事持股狀況!M79="","",董監事持股狀況!M79) -> 6023 | D85: =IFERROR(VLOOKUP(A85,股價!A:B,2,0),"") -> 162.5 | E85: 978737.5 | F85: 0.3123428608 | G85: 78
A86: =IF(董監事持股狀況!K80="","",董監事持股狀況!K80) -> 1532 勤美 | C86: =IF(董監事持股狀況!M80="","",董監事持股狀況!M80) -> 27944 | D86: =IFERROR(VLOOKUP(A86,股價!A:B,2,0),"") -> 33.85 | E86: 945904.4 | F86: 0.3018648885 | G86: 79
A87: =IF(董監事持股狀況!K81="","",董監事持股狀況!K81) -> 2006 東和鋼鐵 | C87: =IF(董監事持股狀況!M81="","",董監事持股狀況!M81) -> 16186 | D87: =IFERROR(VLOOKUP(A87,股價!A:B,2,0),"") -> 57.6 | E87: 932313.6 | F87: 0.2975276792 | G87: 80
A88: =IF(董監事持股狀況!K82="","",董監事持股狀況!K82) -> 3707 漢磊 | C88: =IF(董監事持股狀況!M82="","",董監事持股狀況!M82) -> 11940 | D88: =IFERROR(VLOOKUP(A88,股價!A:B,2,0),"") -> 76.6 | E88: 914604 | F88: 0.2918760442 | G88: 81
A89: =IF(董監事持股狀況!K83="","",董監事持股狀況!K83) -> 1537 廣隆 | C89: =IF(董監事持股狀況!M83="","",董監事持股狀況!M83) -> 6500 | D89: =IFERROR(VLOOKUP(A89,股價!A:B,2,0),"") -> 139 | E89: 903500 | F89: 0.2883324433 | G89: 82
A90: =IF(董監事持股狀況!K84="","",董監事持股狀況!K84) -> 2103 台橡 | C90: =IF(董監事持股狀況!M84="","",董監事持股狀況!M84) -> 33435 | D90: =IFERROR(VLOOKUP(A90,股價!A:B,2,0),"") -> 26.65 | E90: 891042.75 | F90: 0.2843569819 | G90: 83
A91: =IF(董監事持股狀況!K85="","",董監事持股狀況!K85) -> 3376 新日興 | C91: =IF(董監事持股狀況!M85="","",董監事持股狀況!M85) -> 9619 | D91: =IFERROR(VLOOKUP(A91,股價!A:B,2,0),"") -> 92.6 | E91: 890719.4 | F91: 0.2842537918 | G91: 84
A92: =IF(董監事持股狀況!K86="","",董監事持股狀況!K86) -> 1909 榮成 | C92: =IF(董監事持股狀況!M86="","",董監事持股狀況!M86) -> 54133 | D92: =IFERROR(VLOOKUP(A92,股價!A:B,2,0),"") -> 16.35 | E92: 885074.55 | F92: 0.2824523602 | G92: 85
A93: =IF(董監事持股狀況!K87="","",董監事持股狀況!K87) -> 6510 精測 | C93: =IF(董監事持股狀況!M87="","",董監事持股狀況!M87) -> 1846 | D93: =IFERROR(VLOOKUP(A93,股價!A:B,2,0),"") -> 471 | E93: 869466 | F93: 0.2774712298 | G93: 86
A94: =IF(董監事持股狀況!K88="","",董監事持股狀況!K88) -> 3022 威強電 | C94: =IF(董監事持股狀況!M88="","",董監事持股狀況!M88) -> 8911 | D94: =IFERROR(VLOOKUP(A94,股價!A:B,2,0),"") -> 93 | E94: 828723 | F94: 0.2644689844 | G94: 87
A95: =IF(董監事持股狀況!K89="","",董監事持股狀況!K89) -> 8046 南電 | C95: =IF(董監事持股狀況!M89="","",董監事持股狀況!M89) -> 2861 | D95: =IFERROR(VLOOKUP(A95,股價!A:B,2,0),"") -> 288.5 | E95: 825398.5 | F95: 0.2634080423 | G95: 88
A96: =IF(董監事持股狀況!K90="","",董監事持股狀況!K90) -> 6456 GIS-KY | C96: =IF(董監事持股狀況!M90="","",董監事持股狀況!M90) -> 11100 | D96: =IFERROR(VLOOKUP(A96,股價!A:B,2,0),"") -> 74.1 | E96: 822510 | F96: 0.2624862401 | G96: 89
A97: =IF(董監事持股狀況!K91="","",董監事持股狀況!K91) -> 2409 友達 | C97: =IF(董監事持股狀況!M91="","",董監事持股狀況!M91) -> 48000 | D97: =IFERROR(VLOOKUP(A97,股價!A:B,2,0),"") -> 17.05 | E97: 818400 | F97: 0.2611746227 | G97: 90
A98: =IF(董監事持股狀況!K92="","",董監事持股狀況!K92) -> 3026 禾伸堂 | C98: =IF(董監事持股狀況!M92="","",董監事持股狀況!M92) -> 7820 | D98: =IFERROR(VLOOKUP(A98,股價!A:B,2,0),"") -> 102.5 | E98: 801550 | F98: 0.2557973104 | G98: 91
A99: =IF(董監事持股狀況!K93="","",董監事持股狀況!K93) -> 2355 敬鵬 | C99: =IF(董監事持股狀況!M93="","",董監事持股狀況!M93) -> 26499 | D99: =IFERROR(VLOOKUP(A99,股價!A:B,2,0),"") -> 30.2 | E99: 800269.8 | F99: 0.2553887623 | G99: 92
A100: =IF(董監事持股狀況!K94="","",董監事持股狀況!K94) -> 5903 全家 | C100: =IF(董監事持股狀況!M94="","",董監事持股狀況!M94) -> 3745 | D100: =IFERROR(VLOOKUP(A100,股價!A:B,2,0),"") -> 211.5 | E100: 792067.5 | F100: 0.252771176 | G100: 93
A101: =IF(董監事持股狀況!K95="","",董監事持股狀況!K95) -> 5388 中磊 | C101: =IF(董監事持股狀況!M95="","",董監事持股狀況!M95) -> 9013 | D101: =IFERROR(VLOOKUP(A101,股價!A:B,2,0),"") -> 86.7 | E101: 781427.1 | F101: 0.2493755229 | G101: 94
A102: =IF(董監事持股狀況!K96="","",董監事持股狀況!K96) -> 6491 晶碩 | C102: =IF(董監事持股狀況!M96="","",董監事持股狀況!M96) -> 2183 | D102: =IFERROR(VLOOKUP(A102,股價!A:B,2,0),"") -> 356.5 | E102: 778239.5 | F102: 0.2483582695 | G102: 95
A103: =IF(董監事持股狀況!K97="","",董監事持股狀況!K97) -> 5306 桂盟 | C103: =IF(董監事持股狀況!M97="","",董監事持股狀況!M97) -> 5398 | D103: =IFERROR(VLOOKUP(A103,股價!A:B,2,0),"") -> 143 | E103: 771914 | F103: 0.2463396233 | G103: 96
A104: =IF(董監事持股狀況!K98="","",董監事持股狀況!K98) -> 2723 美食-KY | C104: =IF(董監事持股狀況!M98="","",董監事持股狀況!M98) -> 4673 | D104: =IFERROR(VLOOKUP(A104,股價!A:B,2,0),"") -> 159.5 | E104: 745343.5 | F104: 0.2378602241 | G104: 97
A105: =IF(董監事持股狀況!K99="","",董監事持股狀況!K99) -> 3131 弘塑 | C105: =IF(董監事持股狀況!M99="","",董監事持股狀況!M99) -> 1948 | D105: =IFERROR(VLOOKUP(A105,股價!A:B,2,0),"") -> 368 | E105: 716864 | F105: 0.2287716089 | G105: 98
A106: =IF(董監事持股狀況!K100="","",董監事持股狀況!K100) -> 2313 華通 | C106: =IF(董監事持股狀況!M100="","",董監事持股狀況!M100) -> 17000 | D106: =IFERROR(VLOOKUP(A106,股價!A:B,2,0),"") -> 41.8 | E106: 710600 | F106: 0.226772589 | G106: 99
A107: =IF(董監事持股狀況!K101="","",董監事持股狀況!K101) -> 4551 智伸科 | C107: =IF(董監事持股狀況!M101="","",董監事持股狀況!M101) -> 5347 | D107: =IFERROR(VLOOKUP(A107,股價!A:B,2,0),"") -> 131 | E107: 700457 | F107: 0.2235356704 | G107: 100
A108: =IF(董監事持股狀況!K102="","",董監事持股狀況!K102) -> 4105 東洋 | C108: =IF(董監事持股狀況!M102="","",董監事持股狀況!M102) -> 9310 | D108: =IFERROR(VLOOKUP(A108,股價!A:B,2,0),"") -> 75.1 | E108: 699181 | F108: 0.2231284627 | G108: 101
A109: =IF(董監事持股狀況!K103="","",董監事持股狀況!K103) -> 3264 欣銓 | C109: =IF(董監事持股狀況!M103="","",董監事持股狀況!M103) -> 12244 | D109: =IFERROR(VLOOKUP(A109,股價!A:B,2,0),"") -> 53 | E109: 648932 | F109: 0.2070925834 | G109: 102
A110: =IF(董監事持股狀況!K104="","",董監事持股狀況!K104) -> 4536 拓凱 | C110: =IF(董監事持股狀況!M104="","",董監事持股狀況!M104) -> 3172 | D110: =IFERROR(VLOOKUP(A110,股價!A:B,2,0),"") -> 196 | E110: 621712 | F110: 0.1984059103 | G110: 103
A111: =IF(董監事持股狀況!K105="","",董監事持股狀況!K105) -> 9925 新保 | C111: =IF(董監事持股狀況!M105="","",董監事持股狀況!M105) -> 14737 | D111: =IFERROR(VLOOKUP(A111,股價!A:B,2,0),"") -> 41.7 | E111: 614532.9 | F111: 0.1961148561 | G111: 104
A112: =IF(董監事持股狀況!K106="","",董監事持股狀況!K106) -> 3042 晶技 | C112: =IF(董監事持股狀況!M106="","",董監事持股狀況!M106) -> 7087 | D112: =IFERROR(VLOOKUP(A112,股價!A:B,2,0),"") -> 86.2 | E112: 610899.4 | F112: 0.1949553034 | G112: 105
A113: =IF(董監事持股狀況!K107="","",董監事持股狀況!K107) -> 6206 飛捷 | C113: =IF(董監事持股狀況!M107="","",董監事持股狀況!M107) -> 8540 | D113: =IFERROR(VLOOKUP(A113,股價!A:B,2,0),"") -> 70 | E113: 597800 | F113: 0.1907749138 | G113: 106
A114: =IF(董監事持股狀況!K108="","",董監事持股狀況!K108) -> 3035 智原 | C114: =IF(董監事持股狀況!M108="","",董監事持股狀況!M108) -> 3620 | D114: =IFERROR(VLOOKUP(A114,股價!A:B,2,0),"") -> 162 | E114: 586440 | F114: 0.187149616 | G114: 107
A115: =IF(董監事持股狀況!K109="","",董監事持股狀況!K109) -> 6271 同欣電 | C115: =IF(董監事持股狀況!M109="","",董監事持股狀況!M109) -> 3318 | D115: =IFERROR(VLOOKUP(A115,股價!A:B,2,0),"") -> 170.5 | E115: 565719 | F115: 0.1805369579 | G115: 108
A116: =IF(董監事持股狀況!K110="","",董監事持股狀況!K110) -> 5234 達興材料 | C116: =IF(董監事持股狀況!M110="","",董監事持股狀況!M110) -> 5850 | D116: =IFERROR(VLOOKUP(A116,股價!A:B,2,0),"") -> 95.1 | E116: 556335 | F116: 0.1775422577 | G116: 109
A117: =IF(董監事持股狀況!K111="","",董監事持股狀況!K111) -> 4438 廣越 | C117: =IF(董監事持股狀況!M111="","",董監事持股狀況!M111) -> 4667 | D117: =IFERROR(VLOOKUP(A117,股價!A:B,2,0),"") -> 117 | E117: 546039 | F117: 0.1742565124 | G117: 110
A118: =IF(董監事持股狀況!K112="","",董監事持股狀況!K112) -> 6561 是方 | C118: =IF(董監事持股狀況!M112="","",董監事持股狀況!M112) -> 1449 | D118: =IFERROR(VLOOKUP(A118,股價!A:B,2,0),"") -> 369.5 | E118: 535405.5 | F118: 0.1708630614 | G118: 111
A119: =IF(董監事持股狀況!K113="","",董監事持股狀況!K113) -> 2729 瓦城 | C119: =IF(董監事持股狀況!M113="","",董監事持股狀況!M113) -> 1905 | D119: =IFERROR(VLOOKUP(A119,股價!A:B,2,0),"") -> 275 | E119: 523875 | F119: 0.1671833522 | G119: 112
A120: =IF(董監事持股狀況!K114="","",董監事持股狀況!K114) -> 4770 上品 | C120: =IF(董監事持股狀況!M114="","",董監事持股狀況!M114) -> 1802 | D120: =IFERROR(VLOOKUP(A120,股價!A:B,2,0),"") -> 285 | E120: 513570 | F120: 0.1638947348 | G120: 113
A121: =IF(董監事持股狀況!K115="","",董監事持股狀況!K115) -> 6278 台表科 | C121: =IF(董監事持股狀況!M115="","",董監事持股狀況!M115) -> 5300 | D121: =IFERROR(VLOOKUP(A121,股價!A:B,2,0),"") -> 95.2 | E121: 504560 | F121: 0.1610193886 | G121: 114
A122: =IF(董監事持股狀況!K116="","",董監事持股狀況!K116) -> 1305 華夏 | C122: =IF(董監事持股狀況!M116="","",董監事持股狀況!M116) -> 20770 | D122: =IFERROR(VLOOKUP(A122,股價!A:B,2,0),"") -> 23.65 | E122: 491210.5 | F122: 0.156759185 | G122: 115
A123: =IF(董監事持股狀況!K117="","",董監事持股狀況!K117) -> 4137 麗豐-KY | C123: =IF(董監事持股狀況!M117="","",董監事持股狀況!M117) -> 2070 | D123: =IFERROR(VLOOKUP(A123,股價!A:B,2,0),"") -> 232 | E123: 480240 | F123: 0.1532581877 | G123: 116
A124: =IF(董監事持股狀況!K118="","",董監事持股狀況!K118) -> 8462 柏文 | C124: =IF(董監事持股狀況!M118="","",董監事持股狀況!M118) -> 3339 | D124: =IFERROR(VLOOKUP(A124,股價!A:B,2,0),"") -> 143.5 | E124: 479146.5 | F124: 0.1529092208 | G124: 117
A125: =IF(董監事持股狀況!K119="","",董監事持股狀況!K119) -> 9924 福興 | C125: =IF(董監事持股狀況!M119="","",董監事持股狀況!M119) -> 10886 | D125: =IFERROR(VLOOKUP(A125,股價!A:B,2,0),"") -> 43.8 | E125: 476806.8 | F125: 0.1521625563 | G125: 118
A126: =IF(董監事持股狀況!K120="","",董監事持股狀況!K120) -> 8436 大江 | C126: =IF(董監事持股狀況!M120="","",董監事持股狀況!M120) -> 2619 | D126: =IFERROR(VLOOKUP(A126,股價!A:B,2,0),"") -> 177 | E126: 463563 | F126: 0.1479360846 | G126: 119
A127: =IF(董監事持股狀況!K121="","",董監事持股狀況!K121) -> 6192 巨路 | C127: =IF(董監事持股狀況!M121="","",董監事持股狀況!M121) -> 6221 | D127: =IFERROR(VLOOKUP(A127,股價!A:B,2,0),"") -> 73.8 | E127: 459109.8 | F127: 0.1465149423 | G127: 120
A128: =IF(董監事持股狀況!K122="","",董監事持股狀況!K122) -> 9958 世紀鋼 | C128: =IF(董監事持股狀況!M122="","",董監事持股狀況!M122) -> 4559 | D128: =IFERROR(VLOOKUP(A128,股價!A:B,2,0),"") -> 98.9 | E128: 450885.1 | F128: 0.1438902075 | G128: 121
A129: =IF(董監事持股狀況!K123="","",董監事持股狀況!K123) -> 8039 台虹 | C129: =IF(董監事持股狀況!M123="","",董監事持股狀況!M123) -> 10453 | D129: =IFERROR(VLOOKUP(A129,股價!A:B,2,0),"") -> 41.7 | E129: 435890.1 | F129: 0.1391048783 | G129: 122
A130: =IF(董監事持股狀況!K124="","",董監事持股狀況!K124) -> 1227 佳格 | C130: =IF(董監事持股狀況!M124="","",董監事持股狀況!M124) -> 10661 | D130: =IFERROR(VLOOKUP(A130,股價!A:B,2,0),"") -> 40.8 | E130: 434968.8 | F130: 0.1388108654 | G130: 123
A131: =IF(董監事持股狀況!K125="","",董監事持股狀況!K125) -> 1702 南僑 | C131: =IF(董監事持股狀況!M125="","",董監事持股狀況!M125) -> 8359 | D131: =IFERROR(VLOOKUP(A131,股價!A:B,2,0),"") -> 51.2 | E131: 427980.8 | F131: 0.1365807966 | G131: 124
A132: =IF(董監事持股狀況!K126="","",董監事持股狀況!K126) -> 3708 上緯投控 | C132: =IF(董監事持股狀況!M126="","",董監事持股狀況!M126) -> 4205 | D132: =IFERROR(VLOOKUP(A132,股價!A:B,2,0),"") -> 95.4 | E132: 401157 | F132: 0.1280205622 | G132: 125
A133: =IF(董監事持股狀況!K127="","",董監事持股狀況!K127) -> 8916 光隆 | C133: =IF(董監事持股狀況!M127="","",董監事持股狀況!M127) -> 7441 | D133: =IFERROR(VLOOKUP(A133,股價!A:B,2,0),"") -> 52.1 | E133: 387676.1 | F133: 0.1237184251 | G133: 126
A134: =IF(董監事持股狀況!K128="","",董監事持股狀況!K128) -> 3413 京鼎 | C134: =IF(董監事持股狀況!M128="","",董監事持股狀況!M128) -> 2056 | D134: =IFERROR(VLOOKUP(A134,股價!A:B,2,0),"") -> 184.5 | E134: 379332 | F134: 0.1210555865 | G134: 127
A135: =IF(董監事持股狀況!K129="","",董監事持股狀況!K129) -> 6281 全國電 | C135: =IF(董監事持股狀況!M129="","",董監事持股狀況!M129) -> 4491 | D135: =IFERROR(VLOOKUP(A135,股價!A:B,2,0),"") -> 84.2 | E135: 378142.2 | F135: 0.1206758876 | G135: 128
A136: =IF(董監事持股狀況!K130="","",董監事持股狀況!K130) -> 5457 宣德 | C136: =IF(董監事持股狀況!M130="","",董監事持股狀況!M130) -> 7415 | D136: =IFERROR(VLOOKUP(A136,股價!A:B,2,0),"") -> 50.4 | E136: 373716 | F136: =IFERROR(E136/$E$5*100,"") -> 0.1192633618 | G136: =IF(F136="","",RANK(F136,$F$8:$F$999)) -> 129
A137: =IF(董監事持股狀況!K131="","",董監事持股狀況!K131) -> 4532 瑞智 | C137: =IF(董監事持股狀況!M131="","",董監事持股狀況!M131) -> 20400 | D137: =IFERROR(VLOOKUP(A137,股價!A:B,2,0),"") -> 18.1 | E137: =IFERROR(C137*D137,"") -> 369240 | F137: 0.1178349434 | G137: 130
A138: =IF(董監事持股狀況!K132="","",董監事持股狀況!K132) -> 3217 優群 | C138: =IF(董監事持股狀況!M132="","",董監事持股狀況!M132) -> 3600 | D138: =IFERROR(VLOOKUP(A138,股價!A:B,2,0),"") -> 102 | E138: 367200 | F138: 0.1171839216 | G138: 131
A139: =IF(董監事持股狀況!K133="","",董監事持股狀況!K133) -> 3526 凡甲 | C139: =IF(董監事持股狀況!M133="","",董監事持股狀況!M133) -> 2707 | D139: =IFERROR(VLOOKUP(A139,股價!A:B,2,0),"") -> 134.5 | E139: 364091.5 | F139: 0.1161919112 | G139: 132
A140: =IF(董監事持股狀況!K134="","",董監事持股狀況!K134) -> 6732 昇佳電子 | C140: =IF(董監事持股狀況!M134="","",董監事持股狀況!M134) -> 1109 | D140: =IFERROR(VLOOKUP(A140,股價!A:B,2,0),"") -> 328 | E140: 363752 | F140: 0.1160835671 | G140: 133
A141: =IF(董監事持股狀況!K135="","",董監事持股狀況!K135) -> 2536 宏普 | C141: =IF(董監事持股狀況!M135="","",董監事持股狀況!M135) -> 14215 | D141: =IFERROR(VLOOKUP(A141,股價!A:B,2,0),"") -> 25.5 | E141: 362482.5 | F141: 0.1156784337 | G141: 134
A142: =IF(董監事持股狀況!K136="","",董監事持股狀況!K136) -> 4164 承業醫 | C142: =IF(董監事持股狀況!M136="","",董監事持股狀況!M136) -> 5390 | D142: =IFERROR(VLOOKUP(A142,股價!A:B,2,0),"") -> 66.9 | E142: 360591 | F142: 0.1150748025 | G142: 135
A143: =IF(董監事持股狀況!K137="","",董監事持股狀況!K137) -> 3714 富采 | C143: =IF(董監事持股狀況!M137="","",董監事持股狀況!M137) -> 7500 | D143: =IFERROR(VLOOKUP(A143,股價!A:B,2,0),"") -> 47.6 | E143: 357000 | F143: 0.1139288127 | G143: 136
A144: =IF(董監事持股狀況!K138="","",董監事持股狀況!K138) -> 6789 采鈺 | C144: =IF(董監事持股狀況!M138="","",董監事持股狀況!M138) -> 1700 | D144: =IFERROR(VLOOKUP(A144,股價!A:B,2,0),"") -> 208 | E144: 353600 | F144: 0.1128437764 | G144: 137
A145: =IF(董監事持股狀況!K139="","",董監事持股狀況!K139) -> 6284 佳邦 | C145: =IF(董監事持股狀況!M139="","",董監事持股狀況!M139) -> 6515 | D145: =IFERROR(VLOOKUP(A145,股價!A:B,2,0),"") -> 53.9 | E145: 351158.5 | F145: 0.1120646246 | G145: 138
A146: =IF(董監事持股狀況!K140="","",董監事持股狀況!K140) -> 1701 中化 | C146: =IF(董監事持股狀況!M140="","",董監事持股狀況!M140) -> 12766 | D146: =IFERROR(VLOOKUP(A146,股價!A:B,2,0),"") -> 25.8 | E146: 329362.8 | F146: 0.1051089993 | G146: 139
A147: =IF(董監事持股狀況!K141="","",董監事持股狀況!K141) -> 6416 瑞祺電通 | C147: =IF(董監事持股狀況!M141="","",董監事持股狀況!M141) -> 3400 | D147: =IFERROR(VLOOKUP(A147,股價!A:B,2,0),"") -> 96.7 | E147: 328780 | F147: 0.1049230113 | G147: 140
A148: =IF(董監事持股狀況!K142="","",董監事持股狀況!K142) -> 6166 凌華 | C148: =IF(董監事持股狀況!M142="","",董監事持股狀況!M142) -> 4941 | D148: =IFERROR(VLOOKUP(A148,股價!A:B,2,0),"") -> 60.2 | E148: 297448.2 | F148: 0.09492414638 | G148: 141
A149: =IF(董監事持股狀況!K143="","",董監事持股狀況!K143) -> 9905 大華 | C149: =IF(董監事持股狀況!M143="","",董監事持股狀況!M143) -> 11632 | D149: =IFERROR(VLOOKUP(A149,股價!A:B,2,0),"") -> 25.55 | E149: 297197.6 | F149: 0.09484417282 | G149: 142
A150: =IF(董監事持股狀況!K144="","",董監事持股狀況!K144) -> 1583 程泰 | C150: =IF(董監事持股狀況!M144="","",董監事持股狀況!M144) -> 4264 | D150: =IFERROR(VLOOKUP(A150,股價!A:B,2,0),"") -> 66.6 | E150: 283982.4 | F150: 0.09062682816 | G150: 143
A151: =IF(董監事持股狀況!K145="","",董監事持股狀況!K145) -> 1597 直得 | C151: =IF(董監事持股狀況!M145="","",董監事持股狀況!M145) -> 3473 | D151: =IFERROR(VLOOKUP(A151,股價!A:B,2,0),"") -> 73.9 | E151: 256654.7 | F151: 0.08190578498 | G151: 144
A152: =IF(董監事持股狀況!K146="","",董監事持股狀況!K146) -> 4540 全球傳動 | C152: =IF(董監事持股狀況!M146="","",董監事持股狀況!M146) -> 6255 | D152: =IFERROR(VLOOKUP(A152,股價!A:B,2,0),"") -> 40.55 | E152: 253640.25 | F152: 0.08094378859 | G152: 145
A153: =IF(董監事持股狀況!K147="","",董監事持股狀況!K147) -> 4163 鐿鈦 | C153: =IF(董監事持股狀況!M147="","",董監事持股狀況!M147) -> 1825 | D153: =IFERROR(VLOOKUP(A153,股價!A:B,2,0),"") -> 136.5 | E153: 249112.5 | F153: 0.07949885531 | G153: 146
A154: =IF(董監事持股狀況!K148="","",董監事持股狀況!K148) -> 5285 界霖 | C154: =IF(董監事持股狀況!M148="","",董監事持股狀況!M148) -> 3366 | D154: =IFERROR(VLOOKUP(A154,股價!A:B,2,0),"") -> 71.6 | E154: 241005.6 | F154: 0.07691171388 | G154: 147
A155: =IF(董監事持股狀況!K149="","",董監事持股狀況!K149) -> 4535 至興 | C155: =IF(董監事持股狀況!M149="","",董監事持股狀況!M149) -> 5695 | D155: =IFERROR(VLOOKUP(A155,股價!A:B,2,0),"") -> 39.4 | E155: 224383 | F155: 0.07160697136 | G155: 148
A156: =IF(董監事持股狀況!K150="","",董監事持股狀況!K150) -> 8437 大地-KY | C156: =IF(董監事持股狀況!M150="","",董監事持股狀況!M150) -> 1966 | D156: =IFERROR(VLOOKUP(A156,股價!A:B,2,0),"") -> 106 | E156: 208396 | F156: 0.06650506679 | G156: 149
A157: =IF(董監事持股狀況!K151="","",董監事持股狀況!K151) -> 3611 鼎翰 | C157: =IF(董監事持股狀況!M151="","",董監事持股狀況!M151) -> 828 | D157: =IFERROR(VLOOKUP(A157,股價!A:B,2,0),"") -> 236 | E157: 195408 | F157: 0.06236022809 | G157: 150
A158: =IF(董監事持股狀況!K152="","",董監事持股狀況!K152) -> 8227 巨有科技 | C158: =IF(董監事持股狀況!M152="","",董監事持股狀況!M152) -> 1083 | D158: =IFERROR(VLOOKUP(A158,股價!A:B,2,0),"") -> 174 | E158: 188442 | F158: 0.06013718016 | G158: 151
A159: =IF(董監事持股狀況!K153="","",董監事持股狀況!K153) -> 6120 達運 | C159: =IF(董監事持股狀況!M153="","",董監事持股狀況!M153) -> 18300 | D159: =IFERROR(VLOOKUP(A159,股價!A:B,2,0),"") -> 10.2 | E159: 186660 | F159: 0.05956849348 | G159: 152
A160: =IF(董監事持股狀況!K154="","",董監事持股狀況!K154) -> 6104 創惟 | C160: =IF(董監事持股狀況!M154="","",董監事持股狀況!M154) -> 1727 | D160: =IFERROR(VLOOKUP(A160,股價!A:B,2,0),"") -> 105.5 | E160: 182198.5 | F160: 0.05814470245 | G160: 153
A161: =IF(董監事持股狀況!K155="","",董監事持股狀況!K155) -> 1530 亞崴 | C161: =IF(董監事持股狀況!M155="","",董監事持股狀況!M155) -> 5457 | D161: =IFERROR(VLOOKUP(A161,股價!A:B,2,0),"") -> 32.6 | E161: 177898.2 | F161: 0.05677235491 | G161: 154
A162: =IF(董監事持股狀況!K156="","",董監事持股狀況!K156) -> 6541 泰福-KY | C162: =IF(董監事持股狀況!M156="","",董監事持股狀況!M156) -> 2232 | D162: =IFERROR(VLOOKUP(A162,股價!A:B,2,0),"") -> 79 | E162: 176328 | F162: 0.05627125961 | G162: 155
A163: =IF(董監事持股狀況!K157="","",董監事持股狀況!K157) -> 2062 橋椿 | C163: =IF(董監事持股狀況!M157="","",董監事持股狀況!M157) -> 8150 | D163: =IFERROR(VLOOKUP(A163,股價!A:B,2,0),"") -> 21.3 | E163: 173595 | F163: 0.05539908189 | G163: 156
A164: =IF(董監事持股狀況!K158="","",董監事持股狀況!K158) -> 4401 東隆興 | C164: =IF(董監事持股狀況!M158="","",董監事持股狀況!M158) -> 5402 | D164: =IFERROR(VLOOKUP(A164,股價!A:B,2,0),"") -> 27 | E164: 145854 | F164: 0.04654614298 | G164: 157
A165: =IF(董監事持股狀況!K159="","",董監事持股狀況!K159) -> 4572 駐龍 | C165: =IF(董監事持股狀況!M159="","",董監事持股狀況!M159) -> 915 | D165: =IFERROR(VLOOKUP(A165,股價!A:B,2,0),"") -> 156 | E165: 142740 | F165: 0.04555237737 | G165: 158
A166: =IF(董監事持股狀況!K160="","",董監事持股狀況!K160) -> 1558 伸興 | C166: =IF(董監事持股狀況!M160="","",董監事持股狀況!M160) -> 1239 | D166: =IFERROR(VLOOKUP(A166,股價!A:B,2,0),"") -> 108.5 | E166: 134431.5 | F166: 0.04290089967 | G166: 159
A167: =IF(董監事持股狀況!K161="","",董監事持股狀況!K161) -> 6581 鋼聯 | C167: =IF(董監事持股狀況!M161="","",董監事持股狀況!M161) -> 1413 | D167: =IFERROR(VLOOKUP(A167,股價!A:B,2,0),"") -> 90.2 | E167: 127452.6 | F167: 0.04067373499 | G167: 160
A168: =IF(董監事持股狀況!K162="","",董監事持股狀況!K162) -> 9951 皇田 | C168: =IF(董監事持股狀況!M162="","",董監事持股狀況!M162) -> 1797 | D168: =IFERROR(VLOOKUP(A168,股價!A:B,2,0),"") -> 70.6 | E168: 126868.2 | F168: 0.04048723639 | G168: 161
A169: =IF(董監事持股狀況!K163="","",董監事持股狀況!K163) -> 1527 鑽全 | C169: =IF(董監事持股狀況!M163="","",董監事持股狀況!M163) -> 2820 | D169: =IFERROR(VLOOKUP(A169,股價!A:B,2,0),"") -> 41.85 | E169: 118017 | F169: 0.03766256775 | G169: 162
A170: =IF(董監事持股狀況!K164="","",董監事持股狀況!K164) -> 6195 詩肯 | C170: =IF(董監事持股狀況!M164="","",董監事持股狀況!M164) -> 2000 | D170: =IFERROR(VLOOKUP(A170,股價!A:B,2,0),"") -> 46.15 | E170: 92300 | F170: 0.02945554456 | G170: 163
A171: =IF(董監事持股狀況!K165="","",董監事持股狀況!K165) -> 6683 雍智科技 | C171: =IF(董監事持股狀況!M165="","",董監事持股狀況!M165) -> 472 | D171: =IFERROR(VLOOKUP(A171,股價!A:B,2,0),"") -> 193.5 | E171: 91332 | F171: 0.02914662834 | G171: 164
A172: =IF(董監事持股狀況!K166="","",董監事持股狀況!K166) -> 2419 仲琦 | C172: =IF(董監事持股狀況!M166="","",董監事持股狀況!M166) -> 3265 | D172: =IFERROR(VLOOKUP(A172,股價!A:B,2,0),"") -> 26.1 | E172: 85216.5 | F172: 0.02719499906 | G172: 165
A173: =IF(董監事持股狀況!K167="","",董監事持股狀況!K167) -> 1338 廣華-KY | C173: =IF(董監事持股狀況!M167="","",董監事持股狀況!M167) -> 1725 | D173: =IFERROR(VLOOKUP(A173,股價!A:B,2,0),"") -> 42.6 | E173: 73485 | F173: 0.0234511451 | G173: 166
A174: =IF(董監事持股狀況!K168="","",董監事持股狀況!K168) -> 4198 欣大健康 | C174: =IF(董監事持股狀況!M168="","",董監事持股狀況!M168) -> 489 | D174: =IFERROR(VLOOKUP(A174,股價!A:B,2,0),"") -> 25 | E174: 12225 | F174: 0.003901343795 | G174: 167
A175: =IF(董監事持股狀況!K169="","",董監事持股狀況!K169) ->  | C175: =IF(董監事持股狀況!M169="","",董監事持股狀況!M169) ->  | D175: =IFERROR(VLOOKUP(A175,股價!A:B,2,0),"") -> 
A176: =IF(董監事持股狀況!K170="","",董監事持股狀況!K170) ->  | C176: =IF(董監事持股狀況!M170="","",董監事持股狀況!M170) ->  | D176: =IFERROR(VLOOKUP(A176,股價!A:B,2,0),"") -> 
A177: =IF(董監事持股狀況!K171="","",董監事持股狀況!K171) ->  | C177: =IF(董監事持股狀況!M171="","",董監事持股狀況!M171) ->  | D177: =IFERROR(VLOOKUP(A177,股價!A:B,2,0),"") -> 
A178: =IF(董監事持股狀況!K172="","",董監事持股狀況!K172) ->  | C178: =IF(董監事持股狀況!M172="","",董監事持股狀況!M172) ->  | D178: =IFERROR(VLOOKUP(A178,股價!A:B,2,0),"") -> 
A179: =IF(董監事持股狀況!K173="","",董監事持股狀況!K173) ->  | C179: =IF(董監事持股狀況!M173="","",董監事持股狀況!M173) ->  | D179: =IFERROR(VLOOKUP(A179,股價!A:B,2,0),"") -> 
A180: =IF(董監事持股狀況!K174="","",董監事持股狀況!K174) ->  | C180: =IF(董監事持股狀況!M174="","",董監事持股狀況!M174) ->  | D180: =IFERROR(VLOOKUP(A180,股價!A:B,2,0),"") -> 
A181: =IF(董監事持股狀況!K175="","",董監事持股狀況!K175) ->  | C181: =IF(董監事持股狀況!M175="","",董監事持股狀況!M175) ->  | D181: =IFERROR(VLOOKUP(A181,股價!A:B,2,0),"") -> 
A182: =IF(董監事持股狀況!K176="","",董監事持股狀況!K176) ->  | C182: =IF(董監事持股狀況!M176="","",董監事持股狀況!M176) ->  | D182: =IFERROR(VLOOKUP(A182,股價!A:B,2,0),"") -> 
A183: =IF(董監事持股狀況!K177="","",董監事持股狀況!K177) ->  | C183: =IF(董監事持股狀況!M177="","",董監事持股狀況!M177) ->  | D183: =IFERROR(VLOOKUP(A183,股價!A:B,2,0),"") -> 
A184: =IF(董監事持股狀況!K178="","",董監事持股狀況!K178) ->  | C184: =IF(董監事持股狀況!M178="","",董監事持股狀況!M178) ->  | D184: =IFERROR(VLOOKUP(A184,股價!A:B,2,0),"") -> 
A185: =IF(董監事持股狀況!K179="","",董監事持股狀況!K179) ->  | C185: =IF(董監事持股狀況!M179="","",董監事持股狀況!M179) ->  | D185: =IFERROR(VLOOKUP(A185,股價!A:B,2,0),"") -> 
A186: =IF(董監事持股狀況!K180="","",董監事持股狀況!K180) ->  | C186: =IF(董監事持股狀況!M180="","",董監事持股狀況!M180) ->  | D186: =IFERROR(VLOOKUP(A186,股價!A:B,2,0),"") -> 
A187: =IF(董監事持股狀況!K181="","",董監事持股狀況!K181) ->  | C187: =IF(董監事持股狀況!M181="","",董監事持股狀況!M181) ->  | D187: =IFERROR(VLOOKUP(A187,股價!A:B,2,0),"") -> 
A188: =IF(董監事持股狀況!K182="","",董監事持股狀況!K182) ->  | C188: =IF(董監事持股狀況!M182="","",董監事持股狀況!M182) ->  | D188: =IFERROR(VLOOKUP(A188,股價!A:B,2,0),"") -> 
A189: =IF(董監事持股狀況!K183="","",董監事持股狀況!K183) ->  | C189: =IF(董監事持股狀況!M183="","",董監事持股狀況!M183) ->  | D189: =IFERROR(VLOOKUP(A189,股價!A:B,2,0),"") -> 
A190: =IF(董監事持股狀況!K184="","",董監事持股狀況!K184) ->  | C190: =IF(董監事持股狀況!M184="","",董監事持股狀況!M184) ->  | D190: =IFERROR(VLOOKUP(A190,股價!A:B,2,0),"") -> 
A191: =IF(董監事持股狀況!K185="","",董監事持股狀況!K185) ->  | C191: =IF(董監事持股狀況!M185="","",董監事持股狀況!M185) ->  | D191: =IFERROR(VLOOKUP(A191,股價!A:B,2,0),"") -> 
A192: =IF(董監事持股狀況!K186="","",董監事持股狀況!K186) ->  | C192: =IF(董監事持股狀況!M186="","",董監事持股狀況!M186) ->  | D192: =IFERROR(VLOOKUP(A192,股價!A:B,2,0),"") -> 
A193: =IF(董監事持股狀況!K187="","",董監事持股狀況!K187) ->  | C193: =IF(董監事持股狀況!M187="","",董監事持股狀況!M187) ->  | D193: =IFERROR(VLOOKUP(A193,股價!A:B,2,0),"") -> 
A194: =IF(董監事持股狀況!K188="","",董監事持股狀況!K188) ->  | C194: =IF(董監事持股狀況!M188="","",董監事持股狀況!M188) ->  | D194: =IFERROR(VLOOKUP(A194,股價!A:B,2,0),"") -> 
A195: =IF(董監事持股狀況!K189="","",董監事持股狀況!K189) ->  | C195: =IF(董監事持股狀況!M189="","",董監事持股狀況!M189) ->  | D195: =IFERROR(VLOOKUP(A195,股價!A:B,2,0),"") -> 
A196: =IF(董監事持股狀況!K190="","",董監事持股狀況!K190) ->  | C196: =IF(董監事持股狀況!M190="","",董監事持股狀況!M190) ->  | D196: =IFERROR(VLOOKUP(A196,股價!A:B,2,0),"") -> 
A197: =IF(董監事持股狀況!K191="","",董監事持股狀況!K191) ->  | C197: =IF(董監事持股狀況!M191="","",董監事持股狀況!M191) ->  | D197: =IFERROR(VLOOKUP(A197,股價!A:B,2,0),"") -> 
A198: =IF(董監事持股狀況!K192="","",董監事持股狀況!K192) ->  | C198: =IF(董監事持股狀況!M192="","",董監事持股狀況!M192) ->  | D198: =IFERROR(VLOOKUP(A198,股價!A:B,2,0),"") -> 
A199: =IF(董監事持股狀況!K193="","",董監事持股狀況!K193) ->  | C199: =IF(董監事持股狀況!M193="","",董監事持股狀況!M193) ->  | D199: =IFERROR(VLOOKUP(A199,股價!A:B,2,0),"") -> 
A200: =IF(董監事持股狀況!K194="","",董監事持股狀況!K194) ->  | C200: =IF(董監事持股狀況!M194="","",董監事持股狀況!M194) ->  | D200: =IFERROR(VLOOKUP(A200,股價!A:B,2,0),"") ->  | F200: =IFERROR(E200/$E$5*100,"") ->  | G200: =IF(F200="","",RANK(F200,$F$8:$F$999)) -> 
A201: =IF(董監事持股狀況!K195="","",董監事持股狀況!K195) ->  | C201: =IF(董監事持股狀況!M195="","",董監事持股狀況!M195) ->  | D201: =IFERROR(VLOOKUP(A201,股價!A:B,2,0),"") ->  | E201: =IFERROR(C201*D201,"") -> 
A202: =IF(董監事持股狀況!K196="","",董監事持股狀況!K196) ->  | C202: =IF(董監事持股狀況!M196="","",董監事持股狀況!M196) ->  | D202: =IFERROR(VLOOKUP(A202,股價!A:B,2,0),"") -> 
A203: =IF(董監事持股狀況!K197="","",董監事持股狀況!K197) ->  | C203: =IF(董監事持股狀況!M197="","",董監事持股狀況!M197) ->  | D203: =IFERROR(VLOOKUP(A203,股價!A:B,2,0),"") -> 
A204: =IF(董監事持股狀況!K198="","",董監事持股狀況!K198) ->  | C204: =IF(董監事持股狀況!M198="","",董監事持股狀況!M198) ->  | D204: =IFERROR(VLOOKUP(A204,股價!A:B,2,0),"") -> 
... 795 more rows

Sheet 董監事持股狀況
A1: 2023/04/28 | F1: 持有人全名 | H1: ID | I1: 公司清單 | K1: 公司代碼 | L1: 持股人姓名 | M1: 持股數 | N1: 持有人全名 | O1: 金額 | P1: 排名
A2: 公司代碼 | B2: 持股人姓名 | C2: 持股數 | D2: 持有人全名 | E2: 13 | F2: 富邦人壽保險 | G2: =IFERROR(VLOOKUP(E2,H:J,2,0),"") -> 遠壽 | H2: 2 | I2: 南山人壽 | J2: 南山人壽保險 | K2: 2891 中信金 | L2: 富邦人壽保險(股)富邦人壽保險 | M2: 814000 | N2: 富邦人壽保險 | O2: =IFERROR(VLOOKUP(K2,股價!A:B,2,0)*M2,"") -> 19169700 | P2: =IF(O2="","",RANK(O2,$O$2:$O$1000)) -> 1
A3: 1101 台泥 | B3: _大股東合計1 | C3: 0 | H3: 3 | I3: 國壽 | J3: 國泰人壽保險 | K3: 2454 聯發科 | L3: 富邦人壽保險(股)蔡明興 | M3: 24748 | N3: 富邦人壽保險 | O3: =IFERROR(VLOOKUP(K3,股價!A:B,2,0)*M3,"") -> 16828640 | P3: =IF(O3="","",RANK(O3,$O$2:$O$1000)) -> 2
A4: 1101 台泥 | B4: _大股東合計2 含沿用資料 | C4: 986653 | H4: 4 | I4: 富邦人壽 | J4: 富邦人壽保險 | K4: 3045 台灣大 | L4: 富邦人壽保險(股)蔡明興 | M4: 150880 | N4: 富邦人壽保險 | O4: =IFERROR(VLOOKUP(K4,股價!A:B,2,0)*M4,"") -> 15616080 | P4: =IF(O4="","",RANK(O4,$O$2:$O$1000)) -> 3
A5: 1101 台泥 | B5: _經理人合計 | C5: 7711 | H5: 5 | I5: 新壽 | J5: 新光人壽保險 | K5: 2002 中鋼 | L5: 富邦人壽保險(股)蔡明興 | M5: 393777 | N5: 富邦人壽保險 | O5: =IFERROR(VLOOKUP(K5,股價!A:B,2,0)*M5,"") -> 11498288.4 | P5: =IF(O5="","",RANK(O5,$O$2:$O$1000)) -> 4
A6: 1101 台泥 | B6: _董 事合計 | C6: 564677 | H6: 6 | I6: 台壽 | J6: 台灣人壽保險 | K6: 2886 兆豐金 | L6: 富邦人壽保險(股)蔡明興 | M6: 270088 | N6: 富邦人壽保險 | O6: =IFERROR(VLOOKUP(K6,股價!A:B,2,0)*M6,"") -> 9493593.2 | P6: =IF(O6="","",RANK(O6,$O$2:$O$1000)) -> 5
A7: 1101 台泥 | B7: _董監事合計 | C7: 564677 | H7: 7 | I7: 全球人壽 | J7: 全球人壽保險 | K7: 3034 聯詠 | L7: 富邦人壽保險(股)蔡明興 | M7: 22447 | N7: 富邦人壽保險 | O7: =IFERROR(VLOOKUP(K7,股價!A:B,2,0)*M7,"") -> 9113482 | P7: =IF(O7="","",RANK(O7,$O$2:$O$1000)) -> 6
A8: 1101 台泥 | B8: _監察人合計 | C8: 0 | H8: 8 | I8: 中壽 | J8: 中國人壽保險 | K8: 1326 台化 | L8: 富邦人壽保險(股)蔡明興 | M8: 130301 | N8: 富邦人壽保險 | O8: =IFERROR(VLOOKUP(K8,股價!A:B,2,0)*M8,"") -> 9003799.1 | P8: =IF(O8="","",RANK(O8,$O$2:$O$1000)) -> 7
A9: 1101 台泥 | B9: 于明仁 于明仁 | C9: 110 | D9: 于明仁 | H9: 9 | I9: 宏泰人壽 | J9: 宏泰人壽保險 | K9: 2303 聯電 | L9: 富邦人壽保險(股)富邦人壽保險 | M9: 172449 | N9: 富邦人壽保險 | O9: =IFERROR(VLOOKUP(K9,股價!A:B,2,0)*M9,"") -> 8415511.2 | P9: =IF(O9="","",RANK(O9,$O$2:$O$1000)) -> 8
A10: 1101 台泥 | B10: 中信投資(股) 侯天儀 | C10: 266234 | D10: 中信投資 | H10: 10 | I10: 中信人壽 | J10: 中國信託人壽保險 | K10: 8454 富邦媒 | L10: 富邦人壽保險(股)蔡明興 | M10: 10374 | N10: 富邦人壽保險 | O10: =IFERROR(VLOOKUP(K10,股價!A:B,2,0)*M10,"") -> 7427784 | P10: =IF(O10="","",RANK(O10,$O$2:$O$1000)) -> 9
A11: 1101 台泥 | B11: 元大台高股息 元大台高股息 | C11: 101209 | D11: 元大臺灣高股息基金專戶 | H11: 11 | I11: 臺銀人壽 | J11: 臺銀人壽保險 | K11: 2412 中華電 | L11: 富邦人壽保險(股)蔡明興 | M11: 54639 | N11: 富邦人壽保險 | O11: =IFERROR(VLOOKUP(K11,股價!A:B,2,0)*M11,"") -> 6884514 | P11: =IF(O11="","",RANK(O11,$O$2:$O$1000)) -> 10
A12: 1101 台泥 | B12: 王伯元 王伯元 | C12: 0 | D12: 王伯元 | H12: 12 | I12: 三商壽 | J12: 三商美邦人壽保險 | K12: 2379 瑞昱 | L12: 富邦人壽保險(股)蔡明興 | M12: 17661 | N12: 富邦人壽保險 | O12: =IFERROR(VLOOKUP(K12,股價!A:B,2,0)*M12,"") -> 6605214 | P12: =IF(O12="","",RANK(O12,$O$2:$O$1000)) -> 11
A13: 1101 台泥 | B13: 王金山 王金山 | C13: 0 | D13: 王金山 | H13: 13 | I13: 遠壽 | J13: 遠雄人壽保險事業 | K13: 2885 元大金 | L13: 富邦人壽保險(股)蔡明興 | M13: 286278 | N13: 富邦人壽保險 | O13: =IFERROR(VLOOKUP(K13,股價!A:B,2,0)*M13,"") -> 6570080.1 | P13: =IF(O13="","",RANK(O13,$O$2:$O$1000)) -> 12
A14: 1101 台泥 | B14: 王建全 王建全 | C14: 219 | D14: 王建全 | H14: 14 | I14: 元大人壽 | J14: 元大人壽保險 | K14: 2890 永豐金 | L14: 富邦人壽保險(股)富邦人壽保險 | M14: 311526 | N14: 富邦人壽保險 | O14: =IFERROR(VLOOKUP(K14,股價!A:B,2,0)*M14,"") -> 5327094.6 | P14: =IF(O14="","",RANK(O14,$O$2:$O$1000)) -> 13
A15: 1101 台泥 | B15: 丘惠生 丘惠生 | C15: 0 | D15: 丘惠生 | K15: 5876 上海商銀 | L15: 富邦人壽保險(股)蔡明興 | M15: 112697 | N15: 富邦人壽保險 | O15: =IFERROR(VLOOKUP(K15,股價!A:B,2,0)*M15,"") -> 5246045.35 | P15: =IF(O15="","",RANK(O15,$O$2:$O$1000)) -> 14
A16: 1101 台泥 | B16: 台灣人壽保險(股)黃思國 | C16: 110528 | D16: 台灣人壽保險 | K16: 2912 統一超 | L16: 富邦人壽保險(股)富邦人壽保險 | M16: 17361 | N16: 富邦人壽保險 | O16: =IFERROR(VLOOKUP(K16,股價!A:B,2,0)*M16,"") -> 5026009.5 | P16: =IF(O16="","",RANK(O16,$O$2:$O$1000)) -> 15
A17: 1101 台泥 | B17: 合作金庫商業銀行雷仲達 | C17: 115789 | D17: 合作金庫商業銀行 | K17: 2892 第一金 | L17: 富邦人壽保險(股)蔡明興 | M17: 177684 | N17: 富邦人壽保險 | O17: =IFERROR(VLOOKUP(K17,股價!A:B,2,0)*M17,"") -> 4895194.2 | P17: =IF(O17="","",RANK(O17,$O$2:$O$1000)) -> 16
A18: 1101 台泥 | B18: 余金龍 余金龍 | C18: 267 | D18: 余金龍 | K18: 8464 億豐 | L18: 富邦人壽託野村投富邦人壽託野 | M18: 13950 | N18: 富邦人壽保險(股)公司全權委託野村投信 | O18: =IFERROR(VLOOKUP(K18,股價!A:B,2,0)*M18,"") -> 4715100 | P18: =IF(O18="","",RANK(O18,$O$2:$O$1000)) -> 17
A19: 1101 台泥 | B19: 吳子揚 吳子揚 | C19: 3 | D19: 吳子揚 | K19: 3702 大聯大 | L19: 富邦人壽保險(股)富邦人壽保險 | M19: 93413 | N19: 富邦人壽保險 | O19: =IFERROR(VLOOKUP(K19,股價!A:B,2,0)*M19,"") -> 4698673.9 | P19: =IF(O19="","",RANK(O19,$O$2:$O$1000)) -> 18
A20: 1101 台泥 | B20: 吳雲德 吳雲德 | C20: 51 | D20: 吳雲德 | K20: 3293 鈊象 | L20: 富邦人壽保險(股)富邦人壽保險 | M20: 7120 | N20: 富邦人壽保險 | O20: =IFERROR(VLOOKUP(K20,股價!A:B,2,0)*M20,"") -> 3887520 | P20: =IF(O20="","",RANK(O20,$O$2:$O$1000)) -> 19
A21: 1101 台泥 | B21: 呂克甫 呂克甫 | C21: 185 | D21: 呂克甫 | K21: 4938 和碩 | L21: 富邦人壽保險(股)富邦人壽保險 | M21: 54051 | N21: 富邦人壽保險 | O21: =IFERROR(VLOOKUP(K21,股價!A:B,2,0)*M21,"") -> 3853836.3 | P21: =IF(O21="","",RANK(O21,$O$2:$O$1000)) -> 20
A22: 1101 台泥 | B22: 李國源 李國源 | C22: 78 | D22: 李國源 | K22: 1590 亞德客-KY | L22: 富邦人壽保險(股)蔡明興 | M22: 3401 | N22: 富邦人壽保險 | O22: =IFERROR(VLOOKUP(K22,股價!A:B,2,0)*M22,"") -> 3605060 | P22: =IF(O22="","",RANK(O22,$O$2:$O$1000)) -> 21
A23: 1101 台泥 | B23: 周玲臺 周玲臺 | C23: 0 | D23: 周玲臺 | K23: 4966 譜瑞-KY | L23: 富邦人壽保險(股)蔡明興 | M23: 3875 | N23: 富邦人壽保險 | O23: =IFERROR(VLOOKUP(K23,股價!A:B,2,0)*M23,"") -> 3588250 | P23: =IF(O23="","",RANK(O23,$O$2:$O$1000)) -> 22
A24: 1101 台泥 | B24: 林秀玲 林秀玲 | C24: 0 | D24: 林秀玲 | K24: 4743 合一 | L24: 富邦人壽保險(股)蔡明興 | M24: 15392 | N24: 富邦人壽保險 | O24: =IFERROR(VLOOKUP(K24,股價!A:B,2,0)*M24,"") -> 3478592 | P24: =IF(O24="","",RANK(O24,$O$2:$O$1000)) -> 23
A25: 1101 台泥 | B25: 林美花 林美花 | C25: 0 | D25: 林美花 | K25: 6488 環球晶 | L25: 富邦人壽保險(股)富邦人壽保險 | M25: 6534 | N25: 富邦人壽保險 | O25: =IFERROR(VLOOKUP(K25,股價!A:B,2,0)*M25,"") -> 3106917 | P25: =IF(O25="","",RANK(O25,$O$2:$O$1000)) -> 24
A26: 1101 台泥 | B26: 花旗台新加坡 花旗台新加坡 | C26: 166102 | D26: 花旗(台灣)商業銀行受託保管新加坡政府投資專戶 | K26: 2357 華碩 | L26: 富邦人壽保險(股)富邦人壽保險 | M26: 10027 | N26: 富邦人壽保險 | O26: =IFERROR(VLOOKUP(K26,股價!A:B,2,0)*M26,"") -> 3043194.5 | P26: =IF(O26="","",RANK(O26,$O$2:$O$1000)) -> 25
A27: 1101 台泥 | B27: 邱鈺文 邱鈺文 | C27: 19 | D27: 邱鈺文 | K27: 2377 微星 | L27: 富邦人壽保險(股)蔡明興 | M27: 19681 | N27: 富邦人壽保險 | O27: =IFERROR(VLOOKUP(K27,股價!A:B,2,0)*M27,"") -> 3040714.5 | P27: =IF(O27="","",RANK(O27,$O$2:$O$1000)) -> 26
A28: 1101 台泥 | B28: 泰和興業(股) 辜公怡 | C28: 6647 | D28: 泰和興業 | K28: 1476 儒鴻 | L28: 富邦人壽保險(股)蔡明興 | M28: 6196 | N28: 富邦人壽保險 | O28: =IFERROR(VLOOKUP(K28,股價!A:B,2,0)*M28,"") -> 2967884 | P28: =IF(O28="","",RANK(O28,$O$2:$O$1000)) -> 27
A29: 1101 台泥 | B29: 國際中橡投資控股駱錦明 | C29: 113896 | D29: 國際中橡投資控股 | K29: 6592 和潤企業 | L29: 富邦人壽保險(股)蔡明興 | M29: 22780 | N29: 富邦人壽保險 | O29: =IFERROR(VLOOKUP(K29,股價!A:B,2,0)*M29,"") -> 2870280 | P29: =IF(O29="","",RANK(O29,$O$2:$O$1000)) -> 28
A30: 1101 台泥 | B30: 張安平 張安平 | C30: 2408 | D30: 張安平 | K30: 6121 新普 | L30: 富邦人壽保險(股)富邦人壽保險 | M30: 9246 | N30: 富邦人壽保險 | O30: =IFERROR(VLOOKUP(K30,股價!A:B,2,0)*M30,"") -> 2843145 | P30: =IF(O30="","",RANK(O30,$O$2:$O$1000)) -> 29
A31: 1101 台泥 | B31: 張年旺 張年旺 | C31: 79 | D31: 張年旺 | K31: 1477 聚陽 | L31: 富邦人壽保險(股)富邦人壽保險 | M31: 12576 | N31: 富邦人壽保險 | O31: =IFERROR(VLOOKUP(K31,股價!A:B,2,0)*M31,"") -> 2835888 | P31: =IF(O31="","",RANK(O31,$O$2:$O$1000)) -> 30
A32: 1101 台泥 | B32: 張剛綸 張剛綸 | C32: 0 | D32: 張剛綸 | K32: 3533 嘉澤 | L32: 富邦人壽保險(股)富邦人壽保險 | M32: 3149 | N32: 富邦人壽保險 | O32: =IFERROR(VLOOKUP(K32,股價!A:B,2,0)*M32,"") -> 2808908 | P32: =IF(O32="","",RANK(O32,$O$2:$O$1000)) -> 31
A33: 1101 台泥 | B33: 張毓揚 張毓揚 | C33: 8 | D33: 張毓揚 | K33: 3023 信邦 | L33: 富邦人壽保險(股)蔡明興 | M33: 7750 | N33: 富邦人壽保險 | O33: =IFERROR(VLOOKUP(K33,股價!A:B,2,0)*M33,"") -> 2766750 | P33: =IF(O33="","",RANK(O33,$O$2:$O$1000)) -> 32
A34: 1101 台泥 | B34: 曹家華 曹家華 | C34: 6 | D34: 曹家華 | K34: 9933 中鼎 | L34: 富邦人壽保險(股)蔡明興 | M34: 60129 | N34: 富邦人壽保險 | O34: =IFERROR(VLOOKUP(K34,股價!A:B,2,0)*M34,"") -> 2453263.2 | P34: =IF(O34="","",RANK(O34,$O$2:$O$1000)) -> 33
A35: 1101 台泥 | B35: 梁詩聖 梁詩聖 | C35: 38 | D35: 梁詩聖 | K35: 2059 川湖 | L35: 富邦人壽保險(股)富邦人壽保險 | M35: 5716 | N35: 富邦人壽保險 | O35: =IFERROR(VLOOKUP(K35,股價!A:B,2,0)*M35,"") -> 2409294 | P35: =IF(O35="","",RANK(O35,$O$2:$O$1000)) -> 34
A36: 1101 台泥 | B36: 陳光熙 陳光熙 | C36: 100 | D36: 陳光熙 | K36: 2634 漢翔 | L36: 富邦人壽保險(股)蔡明興 | M36: 43570 | N36: 富邦人壽保險 | O36: =IFERROR(VLOOKUP(K36,股價!A:B,2,0)*M36,"") -> 2339709 | P36: =IF(O36="","",RANK(O36,$O$2:$O$1000)) -> 35
A37: 1101 台泥 | B37: 陳技竫 陳技竫 | C37: 22 | D37: 陳技竫 | K37: 9904 寶成 | L37: 富邦人壽保險(股)蔡明興 | M37: 73000 | N37: 富邦人壽保險 | O37: =IFERROR(VLOOKUP(K37,股價!A:B,2,0)*M37,"") -> 2281250 | P37: =IF(O37="","",RANK(O37,$O$2:$O$1000)) -> 36
A38: 1101 台泥 | B38: 陳怡中 陳怡中 | C38: 27 | D38: 陳怡中 | K38: 9941 裕融 | L38: 富邦人壽保險(股)蔡明興 | M38: 11995 | N38: 富邦人壽保險 | O38: =IFERROR(VLOOKUP(K38,股價!A:B,2,0)*M38,"") -> 2279050 | P38: =IF(O38="","",RANK(O38,$O$2:$O$1000)) -> 37
A39: 1101 台泥 | B39: 陳啟德 陳啟德 | C39: 75 | D39: 陳啟德 | K39: 3665 貿聯-KY | L39: 富邦人壽保險(股)富邦人壽保險 | M39: 8715 | N39: 富邦人壽保險 | O39: =IFERROR(VLOOKUP(K39,股價!A:B,2,0)*M39,"") -> 2261542.5 | P39: =IF(O39="","",RANK(O39,$O$2:$O$1000)) -> 38
A40: 1101 台泥 | B40: 陳進益 陳進益 | C40: 119 | D40: 陳進益 | K40: 2449 京元電子 | L40: 富邦人壽保險(股)蔡明興 | M40: 48092 | N40: 富邦人壽保險 | O40: =IFERROR(VLOOKUP(K40,股價!A:B,2,0)*M40,"") -> 2200209 | P40: =IF(O40="","",RANK(O40,$O$2:$O$1000)) -> 39
A41: 1101 台泥 | B41: 陳聖德 陳聖德 | C41: 231 | D41: 陳聖德 | K41: 8299 群聯 | L41: 富邦人壽保險(股)蔡明興 | M41: 5709 | N41: 富邦人壽保險 | O41: =IFERROR(VLOOKUP(K41,股價!A:B,2,0)*M41,"") -> 2132311.5 | P41: =IF(O41="","",RANK(O41,$O$2:$O$1000)) -> 40
A42: 1101 台泥 | B42: 陳銀華 陳銀華 | C42: 71 | D42: 陳銀華 | K42: 2376 技嘉 | L42: 富邦人壽保險(股)蔡明興 | M42: 14545 | N42: 富邦人壽保險 | O42: =IFERROR(VLOOKUP(K42,股價!A:B,2,0)*M42,"") -> 2101752.5 | P42: =IF(O42="","",RANK(O42,$O$2:$O$1000)) -> 41
A43: 1101 台泥 | B43: 富品投資(股) 王伯元 | C43: 85225 | D43: 富品投資股份有限公司 | K43: 4128 中天 | L43: 富邦人壽保險(股)蔡明興 | M43: 32043 | N43: 富邦人壽保險 | O43: =IFERROR(VLOOKUP(K43,股價!A:B,2,0)*M43,"") -> 1948214.4 | P43: =IF(O43="","",RANK(O43,$O$2:$O$1000)) -> 42
A44: 1101 台泥 | B44: 富品投資(股) 謝其嘉 | C44: 85225 | D44: 富品投資股份有限公司 | K44: 1707 葡萄王 | L44: 富邦人壽保險(股)富邦人壽保險 | M44: 10757 | N44: 富邦人壽保險 | O44: =IFERROR(VLOOKUP(K44,股價!A:B,2,0)*M44,"") -> 1882475 | P44: =IF(O44="","",RANK(O44,$O$2:$O$1000)) -> 43
A45: 1101 台泥 | B45: 焦佑鈞 焦佑鈞 | C45: 0 | D45: 焦佑鈞 | K45: 3231 緯創 | L45: 富邦人壽保險(股)蔡明興 | M45: 38000 | N45: 富邦人壽保險 | O45: =IFERROR(VLOOKUP(K45,股價!A:B,2,0)*M45,"") -> 1841100 | P45: =IF(O45="","",RANK(O45,$O$2:$O$1000)) -> 44
A46: 1101 台泥 | B46: 程耀輝 程耀輝 | C46: 150 | D46: 程耀輝 | K46: 9802 鈺齊-KY | L46: 富邦人壽保險(股)富邦人壽保險 | M46: 14893 | N46: 富邦人壽保險 | O46: =IFERROR(VLOOKUP(K46,股價!A:B,2,0)*M46,"") -> 1749927.5 | P46: =IF(O46="","",RANK(O46,$O$2:$O$1000)) -> 45
A47: 1101 台泥 | B47: 辜公怡 辜公怡 | C47: 667 | D47: 辜公怡 | K47: 2609 陽明 | L47: 富邦人壽保險(股)蔡明興 | M47: 27546 | N47: 富邦人壽保險 | O47: =IFERROR(VLOOKUP(K47,股價!A:B,2,0)*M47,"") -> 1677551.4 | P47: =IF(O47="","",RANK(O47,$O$2:$O$1000)) -> 46
A48: 1101 台泥 | B48: 辜公亮文教基 陳聖德 | C48: 3485 | D48: 辜公亮文教基金會 | K48: 6176 瑞儀 | L48: 富邦人壽保險(股)富邦人壽保險 | M48: 14600 | N48: 富邦人壽保險 | O48: =IFERROR(VLOOKUP(K48,股價!A:B,2,0)*M48,"") -> 1664400 | P48: =IF(O48="","",RANK(O48,$O$2:$O$1000)) -> 47
A49: 1101 台泥 | B49: 黃健強 黃健強 | C49: 879 | D49: 黃健強 | K49: 6472 保瑞 | L49: 富邦人壽保險(股)富邦人壽保險 | M49: 2018 | N49: 富邦人壽保險 | O49: =IFERROR(VLOOKUP(K49,股價!A:B,2,0)*M49,"") -> 1588166 | P49: =IF(O49="","",RANK(O49,$O$2:$O$1000)) -> 48
A50: 1101 台泥 | B50: 溫堅 溫堅 | C50: 0 | D50: 溫堅 | K50: 3406 玉晶光 | L50: 富邦人壽保險(股)蔡明興 | M50: 4000 | N50: 富邦人壽保險 | O50: =IFERROR(VLOOKUP(K50,股價!A:B,2,0)*M50,"") -> 1576000 | P50: =IF(O50="","",RANK(O50,$O$2:$O$1000)) -> 49
A51: 1101 台泥 | B51: 葉國宏 葉國宏 | C51: 160 | D51: 葉國宏 | K51: 8070 長華* | L51: 富邦人壽保險(股)蔡明興 | M51: 45080 | N51: 富邦人壽保險 | O51: =IFERROR(VLOOKUP(K51,股價!A:B,2,0)*M51,"") -> 1543990 | P51: =IF(O51="","",RANK(O51,$O$2:$O$1000)) -> 50
A52: 1101 台泥 | B52: 葉毓君 葉毓君 | C52: 205 | D52: 葉毓君 | K52: 3189 景碩 | L52: 富邦人壽保險(股)蔡明興 | M52: 14223 | N52: 富邦人壽保險 | O52: =IFERROR(VLOOKUP(K52,股價!A:B,2,0)*M52,"") -> 1536084 | P52: =IF(O52="","",RANK(O52,$O$2:$O$1000)) -> 51
A53: 1101 台泥 | B53: 葛保羅 葛保羅 | C53: 388 | D53: 葛保羅 | K53: 5347 世界 | L53: 富邦人壽保險(股)富邦人壽保險 | M53: 16575 | N53: 富邦人壽保險 | O53: =IFERROR(VLOOKUP(K53,股價!A:B,2,0)*M53,"") -> 1496722.5 | P53: =IF(O53="","",RANK(O53,$O$2:$O$1000)) -> 52
A54: 1101 台泥 | B54: 嘉利實業(股) 張安平 | C54: 3336 | D54: 嘉利實業 | K54: 2408 南亞科 | L54: 富邦人壽保險(股)蔡明興 | M54: 22755 | N54: 富邦人壽保險 | O54: =IFERROR(VLOOKUP(K54,股價!A:B,2,0)*M54,"") -> 1469973 | P54: =IF(O54="","",RANK(O54,$O$2:$O$1000)) -> 53
A55: 1101 台泥 | B55: 嘉新水泥(股) 張剛綸 | C55: 239630 | D55: 嘉新水泥 | K55: 9917 中保科 | L55: 富邦人壽保險(股)蔡明興 | M55: 13161 | N55: 富邦人壽保險 | O55: =IFERROR(VLOOKUP(K55,股價!A:B,2,0)*M55,"") -> 1460871 | P55: =IF(O55="","",RANK(O55,$O$2:$O$1000)) -> 54
A56: 1101 台泥 | B56: 嘉新水泥(股) 陳啟德 | C56: 239630 | D56: 嘉新水泥 | K56: 4763 材料-KY | L56: 富邦人壽保險(股)徐正材 | M56: 2791 | N56: 富邦人壽保險 | O56: =IFERROR(VLOOKUP(K56,股價!A:B,2,0)*M56,"") -> 1451320 | P56: =IF(O56="","",RANK(O56,$O$2:$O$1000)) -> 55
A57: 1101 台泥 | B57: 嘉新國際(股) 張剛綸 | C57: 116909 | D57: 嘉新國際 | K57: 2501 國建 | L57: 富邦人壽保險(股)蔡明興 | M57: 87000 | N57: 富邦人壽保險 | O57: =IFERROR(VLOOKUP(K57,股價!A:B,2,0)*M57,"") -> 1418100 | P57: =IF(O57="","",RANK(O57,$O$2:$O$1000)) -> 56
A58: 1101 台泥 | B58: 劉純穎 劉純穎 | C58: 0 | D58: 劉純穎 | K58: 1723 中碳 | L58: 富邦人壽保險(股)蔡明興 | M58: 12578 | N58: 富邦人壽保險 | O58: =IFERROR(VLOOKUP(K58,股價!A:B,2,0)*M58,"") -> 1408736 | P58: =IF(O58="","",RANK(O58,$O$2:$O$1000)) -> 57
A59: 1101 台泥 | B59: 劉鳳萍 劉鳳萍 | C59: 175 | D59: 劉鳳萍 | K59: 9914 美利達 | L59: 富邦人壽保險(股)富邦人壽保險 | M59: 7930 | N59: 富邦人壽保險 | O59: =IFERROR(VLOOKUP(K59,股價!A:B,2,0)*M59,"") -> 1371890 | P59: =IF(O59="","",RANK(O59,$O$2:$O$1000)) -> 58
A60: 1101 台泥 | B60: 蔣政道 蔣政道 | C60: 119 | D60: 蔣政道 | K60: 3592 瑞鼎 | L60: 富邦人壽保險(股)富邦人壽保險 | M60: 4045 | N60: 富邦人壽保險 | O60: =IFERROR(VLOOKUP(K60,股價!A:B,2,0)*M60,"") -> 1361142.5 | P60: =IF(O60="","",RANK(O60,$O$2:$O$1000)) -> 59
A61: 1101 台泥 | B61: 蔡國嶼 蔡國嶼 | C61: 638 | D61: 蔡國嶼 | K61: 6670 復盛應用 | L61: 富邦人壽保險(股)富邦人壽保險 | M61: 6299 | N61: 富邦人壽保險 | O61: =IFERROR(VLOOKUP(K61,股價!A:B,2,0)*M61,"") -> 1332238.5 | P61: =IF(O61="","",RANK(O61,$O$2:$O$1000)) -> 60
A62: 1101 台泥 | B62: 賴家柔 賴家柔 | C62: 89 | D62: 賴家柔 | K62: 1904 正隆 | L62: 富邦人壽保險(股)蔡明興 | M62: 41865 | N62: 富邦人壽保險 | O62: =IFERROR(VLOOKUP(K62,股價!A:B,2,0)*M62,"") -> 1327120.5 | P62: =IF(O62="","",RANK(O62,$O$2:$O$1000)) -> 61
A63: 1101 台泥 | B63: 駱錦明 駱錦明 | C63: 0 | D63: 駱錦明 | K63: 9938 百和 | L63: 富邦人壽保險(股)蔡明興 | M63: 23363 | N63: 富邦人壽保險 | O63: =IFERROR(VLOOKUP(K63,股價!A:B,2,0)*M63,"") -> 1282628.7 | P63: =IF(O63="","",RANK(O63,$O$2:$O$1000)) -> 62
A64: 1101 台泥 | B64: 謝其嘉 謝其嘉 | C64: 544 | D64: 謝其嘉 | K64: 3703 欣陸 | L64: 富邦人壽保險(股)富邦人壽保險 | M64: 41078 | N64: 富邦人壽保險 | O64: =IFERROR(VLOOKUP(K64,股價!A:B,2,0)*M64,"") -> 1261094.6 | P64: =IF(O64="","",RANK(O64,$O$2:$O$1000)) -> 63
A65: 1101 台泥 | B65: 舊制勞工退休基金舊制勞工退休 | C65: 109882 | D65: 舊制勞工退休基金 | K65: 9921 巨大 | L65: 富邦人壽保險(股)富邦人壽保險 | M65: 6208 | N65: 富邦人壽保險 | O65: =IFERROR(VLOOKUP(K65,股價!A:B,2,0)*M65,"") -> 1247808 | P65: =IF(O65="","",RANK(O65,$O$2:$O$1000)) -> 64
A66: 1101 台泥 | B66: 藍岑蔚 藍岑蔚 | C66: 184 | D66: 藍岑蔚 | K66: 6781 AES-KY | L66: 富邦人壽保險(股)蔡明興 | M66: 1905 | N66: 富邦人壽保險 | O66: =IFERROR(VLOOKUP(K66,股價!A:B,2,0)*M66,"") -> 1242060 | P66: =IF(O66="","",RANK(O66,$O$2:$O$1000)) -> 65
A67: 1101 台泥 | B67: 魏家珮 魏家珮 | C67: 247 | D67: 魏家珮 | K67: 6414 樺漢 | L67: 富邦人壽保險(股)蔡明興 | M67: 4457 | N67: 富邦人壽保險 | O67: =IFERROR(VLOOKUP(K67,股價!A:B,2,0)*M67,"") -> 1234589 | P67: =IF(O67="","",RANK(O67,$O$2:$O$1000)) -> 66
A68: 1101 台泥 | B68: 恒強投資(股) 溫堅 | C68: 112458 | D68: 恒強投資 | K68: 2504 國產 | L68: 富邦人壽保險(股)蔡明興 | M68: 41015 | N68: 富邦人壽保險 | O68: =IFERROR(VLOOKUP(K68,股價!A:B,2,0)*M68,"") -> 1173029 | P68: =IF(O68="","",RANK(O68,$O$2:$O$1000)) -> 67
A69: 1101 台泥 | B69: 恒強投資(股) 劉純穎 | C69: 112458 | D69: 恒強投資 | K69: 5534 長虹 | L69: 富邦人壽保險(股)蔡明興 | M69: 14445 | N69: 富邦人壽保險 | O69: =IFERROR(VLOOKUP(K69,股價!A:B,2,0)*M69,"") -> 1132488 | P69: =IF(O69="","",RANK(O69,$O$2:$O$1000)) -> 68
A70: 1102 亞泥 | B70: _大股東合計1 | C70: 0 | K70: 6548 長科* | L70: 富邦人壽保險(股)蔡明興 | M70: 27415 | N70: 富邦人壽保險 | O70: =IFERROR(VLOOKUP(K70,股價!A:B,2,0)*M70,"") -> 1122644.25 | P70: =IF(O70="","",RANK(O70,$O$2:$O$1000)) -> 69
A71: 1102 亞泥 | B71: _大股東合計2 含沿用資料 | C71: 530762 | K71: 1304 台聚 | L71: 富邦人壽保險(股)蔡明興 | M71: 47506 | N71: 富邦人壽保險 | O71: =IFERROR(VLOOKUP(K71,股價!A:B,2,0)*M71,"") -> 1102139.2 | P71: =IF(O71="","",RANK(O71,$O$2:$O$1000)) -> 70
A72: 1102 亞泥 | B72: _經理人合計 | C72: 3867 | K72: 8422 可寧衛 | L72: 富邦人壽保險(股)蔡明興 | M72: 5425 | N72: 富邦人壽保險 | O72: =IFERROR(VLOOKUP(K72,股價!A:B,2,0)*M72,"") -> 1095850 | P72: =IF(O72="","",RANK(O72,$O$2:$O$1000)) -> 71
A73: 1102 亞泥 | B73: _董 事合計 | C73: 970385 | K73: 2645 長榮航太 | L73: 富邦人壽保險(股)蔡明興 | M73: 10580 | N73: 富邦人壽保險 | O73: =IFERROR(VLOOKUP(K73,股價!A:B,2,0)*M73,"") -> 1084450 | P73: =IF(O73="","",RANK(O73,$O$2:$O$1000)) -> 72
A74: 1102 亞泥 | B74: _董監事合計 | C74: 970385 | K74: 9911 櫻花 | L74: 富邦人壽保險(股)蔡明興 | M74: 16613 | N74: 富邦人壽保險 | O74: =IFERROR(VLOOKUP(K74,股價!A:B,2,0)*M74,"") -> 1066554.6 | P74: =IF(O74="","",RANK(O74,$O$2:$O$1000)) -> 73
A75: 1102 亞泥 | B75: _監察人合計 | C75: 0 | K75: 2106 建大 | L75: 富邦人壽保險(股)蔡明興 | M75: 34914 | N75: 富邦人壽保險 | O75: =IFERROR(VLOOKUP(K75,股價!A:B,2,0)*M75,"") -> 1061385.6 | P75: =IF(O75="","",RANK(O75,$O$2:$O$1000)) -> 74
A76: 1102 亞泥 | B76: 大聚化學纖維(股)陳瑞隆 | C76: 1560 | D76: 大聚化學纖維 | K76: 2548 華固 | L76: 富邦人壽保險(股)蔡明興 | M76: 11000 | N76: 富邦人壽保險 | O76: =IFERROR(VLOOKUP(K76,股價!A:B,2,0)*M76,"") -> 1059300 | P76: =IF(O76="","",RANK(O76,$O$2:$O$1000)) -> 75
A77: 1102 亞泥 | B77: 中國人壽保險(股)譚碩倫 | C77: 84520 | D77: 中國人壽保險 | K77: 4919 新唐 | L77: 富邦人壽保險(股)富邦人壽保險 | M77: 8322 | N77: 富邦人壽保險 | O77: =IFERROR(VLOOKUP(K77,股價!A:B,2,0)*M77,"") -> 1011123 | P77: =IF(O77="","",RANK(O77,$O$2:$O$1000)) -> 76
A78: 1102 亞泥 | B78: 王照宇 王照宇 | C78: 0 | D78: 王照宇 | K78: 5288 豐祥-KY | L78: 富邦人壽保險(股)富邦人壽保險 | M78: 5217 | N78: 富邦人壽保險 | O78: =IFERROR(VLOOKUP(K78,股價!A:B,2,0)*M78,"") -> 980796 | P78: =IF(O78="","",RANK(O78,$O$2:$O$1000)) -> 77
A79: 1102 亞泥 | B79: 兆豐銀財務處 張兆順 | C79: 59500 | D79: 兆豐國際商業銀行總管理處財務處 | K79: 4766 南寶 | L79: 富邦人壽保險(股)蔡明興 | M79: 6023 | N79: 富邦人壽保險 | O79: =IFERROR(VLOOKUP(K79,股價!A:B,2,0)*M79,"") -> 978737.5 | P79: =IF(O79="","",RANK(O79,$O$2:$O$1000)) -> 78
A80: 1102 亞泥 | B80: 朱雲鵬 朱雲鵬 | C80: 0 | D80: 朱雲鵬 | K80: 1532 勤美 | L80: 富邦人壽保險(股)蔡明興 | M80: 27944 | N80: 富邦人壽保險 | O80: =IFERROR(VLOOKUP(K80,股價!A:B,2,0)*M80,"") -> 945904.4 | P80: =IF(O80="","",RANK(O80,$O$2:$O$1000)) -> 79
A81: 1102 亞泥 | B81: 百揚投資(股) 歐晉德 | C81: 3849 | D81: 百揚投資 | K81: 2006 東和鋼鐵 | L81: 富邦人壽保險(股)蔡明興 | M81: 16186 | N81: 富邦人壽保險 | O81: =IFERROR(VLOOKUP(K81,股價!A:B,2,0)*M81,"") -> 932313.6 | P81: =IF(O81="","",RANK(O81,$O$2:$O$1000)) -> 80
A82: 1102 亞泥 | B82: 余東霖 余東霖 | C82: 122 | D82: 余東霖 | K82: 3707 漢磊 | L82: 富邦人壽保險(股)富邦人壽保險 | M82: 11940 | N82: 富邦人壽保險 | O82: =IFERROR(VLOOKUP(K82,股價!A:B,2,0)*M82,"") -> 914604 | P82: =IF(O82="","",RANK(O82,$O$2:$O$1000)) -> 81
A83: 1102 亞泥 | B83: 吳玲綾 吳玲綾 | C83: 180 | D83: 吳玲綾 | K83: 1537 廣隆 | L83: 富邦人壽保險(股)蔡明興 | M83: 6500 | N83: 富邦人壽保險 | O83: =IFERROR(VLOOKUP(K83,股價!A:B,2,0)*M83,"") -> 903500 | P83: =IF(O83="","",RANK(O83,$O$2:$O$1000)) -> 82
A84: 1102 亞泥 | B84: 李光燾 李光燾 | C84: 643 | D84: 李光燾 | K84: 2103 台橡 | L84: 富邦人壽保險(股)蔡明興 | M84: 33435 | N84: 富邦人壽保險 | O84: =IFERROR(VLOOKUP(K84,股價!A:B,2,0)*M84,"") -> 891042.75 | P84: =IF(O84="","",RANK(O84,$O$2:$O$1000)) -> 83
A85: 1102 亞泥 | B85: 李坤炎 李坤炎 | C85: 3334 | D85: 李坤炎 | K85: 3376 新日興 | L85: 富邦人壽保險(股)蔡明興 | M85: 9619 | N85: 富邦人壽保險 | O85: =IFERROR(VLOOKUP(K85,股價!A:B,2,0)*M85,"") -> 890719.4 | P85: =IF(O85="","",RANK(O85,$O$2:$O$1000)) -> 84
A86: 1102 亞泥 | B86: 李冠軍 李冠軍 | C86: 0 | D86: 李冠軍 | K86: 1909 榮成 | L86: 富邦人壽保險(股)富邦人壽保險 | M86: 54133 | N86: 富邦人壽保險 | O86: =IFERROR(VLOOKUP(K86,股價!A:B,2,0)*M86,"") -> 885074.55 | P86: =IF(O86="","",RANK(O86,$O$2:$O$1000)) -> 85
A87: 1102 亞泥 | B87: 李洪慧 李洪慧 | C87: 9 | D87: 李洪慧 | K87: 6510 精測 | L87: 富邦人壽保險(股)蔡明興 | M87: 1846 | N87: 富邦人壽保險 | O87: =IFERROR(VLOOKUP(K87,股價!A:B,2,0)*M87,"") -> 869466 | P87: =IF(O87="","",RANK(O87,$O$2:$O$1000)) -> 86
A88: 1102 亞泥 | B88: 李雅萍 李雅萍 | C88: 0 | D88: 李雅萍 | K88: 3022 威強電 | L88: 富邦人壽保險(股)富邦人壽保險 | M88: 8911 | N88: 富邦人壽保險 | O88: =IFERROR(VLOOKUP(K88,股價!A:B,2,0)*M88,"") -> 828723 | P88: =IF(O88="","",RANK(O88,$O$2:$O$1000)) -> 87
A89: 1102 亞泥 | B89: 私立元智大學 徐旭東 | C89: 47500 | D89: 私立元智大學 | K89: 8046 南電 | L89: 富邦人壽保險(股)蔡明興 | M89: 2861 | N89: 富邦人壽保險 | O89: =IFERROR(VLOOKUP(K89,股價!A:B,2,0)*M89,"") -> 825398.5 | P89: =IF(O89="","",RANK(O89,$O$2:$O$1000)) -> 88
A90: 1102 亞泥 | B90: 席家宜 席家宜 | C90: 454 | D90: 席家宜 | K90: 6456 GIS-KY | L90: 富邦人壽保險(股)蔡明興 | M90: 11100 | N90: 富邦人壽保險 | O90: =IFERROR(VLOOKUP(K90,股價!A:B,2,0)*M90,"") -> 822510 | P90: =IF(O90="","",RANK(O90,$O$2:$O$1000)) -> 89
A91: 1102 亞泥 | B91: 徐元智醫藥 李冠軍 | C91: 181567 | D91: 財團法人徐元智先生醫藥基金會 | K91: 2409 友達 | L91: 富邦人壽保險(股)蔡明興 | M91: 48000 | N91: 富邦人壽保險 | O91: =IFERROR(VLOOKUP(K91,股價!A:B,2,0)*M91,"") -> 818400 | P91: =IF(O91="","",RANK(O91,$O$2:$O$1000)) -> 90
A92: 1102 亞泥 | B92: 徐旭平 徐旭平 | C92: 13455 | D92: 徐旭平 | K92: 3026 禾伸堂 | L92: 富邦人壽保險(股)蔡明興 | M92: 7820 | N92: 富邦人壽保險 | O92: =IFERROR(VLOOKUP(K92,股價!A:B,2,0)*M92,"") -> 801550 | P92: =IF(O92="","",RANK(O92,$O$2:$O$1000)) -> 91
A93: 1102 亞泥 | B93: 徐旭東 徐旭東 | C93: 23278 | D93: 徐旭東 | K93: 2355 敬鵬 | L93: 富邦人壽保險(股)富邦人壽保險 | M93: 26499 | N93: 富邦人壽保險 | O93: =IFERROR(VLOOKUP(K93,股價!A:B,2,0)*M93,"") -> 800269.8 | P93: =IF(O93="","",RANK(O93,$O$2:$O$1000)) -> 92
A94: 1102 亞泥 | B94: 徐有庠先生紀念基徐旭平 | C94: 6219 | D94: 徐有庠先生紀念基金會 | K94: 5903 全家 | L94: 富邦人壽保險(股)富邦人壽保險 | M94: 3745 | N94: 富邦人壽保險 | O94: =IFERROR(VLOOKUP(K94,股價!A:B,2,0)*M94,"") -> 792067.5 | P94: =IF(O94="","",RANK(O94,$O$2:$O$1000)) -> 93
A95: 1102 亞泥 | B95: 徐有庠先生紀念基張振崑 | C95: 6219 | D95: 徐有庠先生紀念基金會 | K95: 5388 中磊 | L95: 富邦人壽保險(股)蔡明興 | M95: 9013 | N95: 富邦人壽保險 | O95: =IFERROR(VLOOKUP(K95,股價!A:B,2,0)*M95,"") -> 781427.1 | P95: =IF(O95="","",RANK(O95,$O$2:$O$1000)) -> 94
A96: 1102 亞泥 | B96: 財團法人徐元智先李光燾 | C96: 44115 | D96: 財團法人徐元智先生紀念基金會 | K96: 6491 晶碩 | L96: 富邦人壽保險(股)富邦人壽保險 | M96: 2183 | N96: 富邦人壽保險 | O96: =IFERROR(VLOOKUP(K96,股價!A:B,2,0)*M96,"") -> 778239.5 | P96: =IF(O96="","",RANK(O96,$O$2:$O$1000)) -> 95
A97: 1102 亞泥 | B97: 高雪英 高雪英 | C97: 1 | D97: 高雪英 | K97: 5306 桂盟 | L97: 富邦人壽保險(股)蔡明興 | M97: 5398 | N97: 富邦人壽保險 | O97: =IFERROR(VLOOKUP(K97,股價!A:B,2,0)*M97,"") -> 771914 | P97: =IF(O97="","",RANK(O97,$O$2:$O$1000)) -> 96
A98: 1102 亞泥 | B98: 國泰元大高股 國泰元大高股 | C98: 133034 | D98: 國泰世華商業銀行受託保管元大寶來台灣高股息證券投資信託基金專戶 | K98: 2723 美食-KY | L98: 富邦人壽保險(股)富邦人壽保險 | M98: 4673 | N98: 富邦人壽保險 | O98: =IFERROR(VLOOKUP(K98,股價!A:B,2,0)*M98,"") -> 745343.5 | P98: =IF(O98="","",RANK(O98,$O$2:$O$1000)) -> 97
A99: 1102 亞泥 | B99: 張才雄 張才雄 | C99: 1165 | D99: 張才雄 | K99: 3131 弘塑 | L99: 富邦人壽保險(股)富邦人壽保險 | M99: 1948 | N99: 富邦人壽保險 | O99: =IFERROR(VLOOKUP(K99,股價!A:B,2,0)*M99,"") -> 716864 | P99: =IF(O99="","",RANK(O99,$O$2:$O$1000)) -> 98
A100: 1102 亞泥 | B100: 張志鵬 張志鵬 | C100: 34 | D100: 張志鵬 | K100: 2313 華通 | L100: 富邦人壽保險(股)富邦人壽保險 | M100: 17000 | N100: 富邦人壽保險 | O100: =IFERROR(VLOOKUP(K100,股價!A:B,2,0)*M100,"") -> 710600 | P100: =IF(O100="","",RANK(O100,$O$2:$O$1000)) -> 99
A101: 1102 亞泥 | B101: 張振崑 張振崑 | C101: 30 | D101: 張振崑 | K101: 4551 智伸科 | L101: 富邦人壽保險(股)蔡明興 | M101: 5347 | N101: 富邦人壽保險 | O101: =IFERROR(VLOOKUP(K101,股價!A:B,2,0)*M101,"") -> 700457 | P101: =IF(O101="","",RANK(O101,$O$2:$O$1000)) -> 100
A102: 1102 亞泥 | B102: 陳長文 陳長文 | C102: 338 | D102: 陳長文 | K102: 4105 東洋 | L102: 富邦人壽保險(股)蔡明興 | M102: 9310 | N102: 富邦人壽保險 | O102: =IFERROR(VLOOKUP(K102,股價!A:B,2,0)*M102,"") -> 699181 | P102: =IF(O102="","",RANK(O102,$O$2:$O$1000)) -> 101
A103: 1102 亞泥 | B103: 陳春明 陳春明 | C103: 40 | D103: 陳春明 | K103: 3264 欣銓 | L103: 富邦人壽保險(股)蔡明興 | M103: 12244 | N103: 富邦人壽保險 | O103: =IFERROR(VLOOKUP(K103,股價!A:B,2,0)*M103,"") -> 648932 | P103: =IF(O103="","",RANK(O103,$O$2:$O$1000)) -> 102
A104: 1102 亞泥 | B104: 陳瑞隆 陳瑞隆 | C104: 0 | D104: 陳瑞隆 | K104: 4536 拓凱 | L104: 富邦人壽保險(股)蔡明興 | M104: 3172 | N104: 富邦人壽保險 | O104: =IFERROR(VLOOKUP(K104,股價!A:B,2,0)*M104,"") -> 621712 | P104: =IF(O104="","",RANK(O104,$O$2:$O$1000)) -> 103
A105: 1102 亞泥 | B105: 陳樹 陳樹 | C105: 0 | D105: 陳樹 | K105: 9925 新保 | L105: 富邦人壽保險(股)蔡明興 | M105: 14737 | N105: 富邦人壽保險 | O105: =IFERROR(VLOOKUP(K105,股價!A:B,2,0)*M105,"") -> 614532.9 | P105: =IF(O105="","",RANK(O105,$O$2:$O$1000)) -> 104
A106: 1102 亞泥 | B106: 陳聰明 陳聰明 | C106: 147 | D106: 陳聰明 | K106: 3042 晶技 | L106: 富邦人壽保險(股)蔡明興 | M106: 7087 | N106: 富邦人壽保險 | O106: =IFERROR(VLOOKUP(K106,股價!A:B,2,0)*M106,"") -> 610899.4 | P106: =IF(O106="","",RANK(O106,$O$2:$O$1000)) -> 105
A107: 1102 亞泥 | B107: 楊淯玲 楊淯玲 | C107: 0 | D107: 楊淯玲 | K107: 6206 飛捷 | L107: 富邦人壽保險(股)富邦人壽保險 | M107: 8540 | N107: 富邦人壽保險 | O107: =IFERROR(VLOOKUP(K107,股價!A:B,2,0)*M107,"") -> 597800 | P107: =IF(O107="","",RANK(O107,$O$2:$O$1000)) -> 106
A108: 1102 亞泥 | B108: 葉文華 葉文華 | C108: 0 | D108: 葉文華 | K108: 3035 智原 | L108: 富邦人壽保險(股)蔡明興 | M108: 3620 | N108: 富邦人壽保險 | O108: =IFERROR(VLOOKUP(K108,股價!A:B,2,0)*M108,"") -> 586440 | P108: =IF(O108="","",RANK(O108,$O$2:$O$1000)) -> 107
A109: 1102 亞泥 | B109: 裕民A(股) 李光燾 | C109: 1506 | D109: 裕民A | K109: 6271 同欣電 | L109: 富邦人壽保險(股)富邦人壽保險 | M109: 3318 | N109: 富邦人壽保險 | O109: =IFERROR(VLOOKUP(K109,股價!A:B,2,0)*M109,"") -> 565719 | P109: =IF(O109="","",RANK(O109,$O$2:$O$1000)) -> 108
A110: 1102 亞泥 | B110: 裕鼎實業(股) 李坤炎 | C110: 1895 | D110: 裕鼎實業 | K110: 5234 達興材料 | L110: 富邦人壽保險(股)蔡明興 | M110: 5850 | N110: 富邦人壽保險 | O110: =IFERROR(VLOOKUP(K110,股價!A:B,2,0)*M110,"") -> 556335 | P110: =IF(O110="","",RANK(O110,$O$2:$O$1000)) -> 109
A111: 1102 亞泥 | B111: 遠東百貨(股) 徐旭東 | C111: 50000 | D111: 遠東百貨 | K111: 4438 廣越 | L111: 富邦人壽保險(股)蔡明興 | M111: 4667 | N111: 富邦人壽保險 | O111: =IFERROR(VLOOKUP(K111,股價!A:B,2,0)*M111,"") -> 546039 | P111: =IF(O111="","",RANK(O111,$O$2:$O$1000)) -> 110
A112: 1102 亞泥 | B112: 遠東新世紀(股) 席家宜 | C112: 750511 | D112: 遠東新世紀 | K112: 6561 是方 | L112: 富邦人壽保險(股)蔡明興 | M112: 1449 | N112: 富邦人壽保險 | O112: =IFERROR(VLOOKUP(K112,股價!A:B,2,0)*M112,"") -> 535405.5 | P112: =IF(O112="","",RANK(O112,$O$2:$O$1000)) -> 111
A113: 1102 亞泥 | B113: 遠東新世紀(股) 張才雄 | C113: 750511 | D113: 遠東新世紀 | K113: 2729 瓦城 | L113: 富邦人壽保險(股)富邦人壽保險 | M113: 1905 | N113: 富邦人壽保險 | O113: =IFERROR(VLOOKUP(K113,股價!A:B,2,0)*M113,"") -> 523875 | P113: =IF(O113="","",RANK(O113,$O$2:$O$1000)) -> 112
A114: 1102 亞泥 | B114: 遠東新世紀(股) 陳長文 | C114: 750511 | D114: 遠東新世紀 | K114: 4770 上品 | L114: 富邦人壽保險(股)富邦人壽保險 | M114: 1802 | N114: 富邦人壽保險 | O114: =IFERROR(VLOOKUP(K114,股價!A:B,2,0)*M114,"") -> 513570 | P114: =IF(O114="","",RANK(O114,$O$2:$O$1000)) -> 113
A115: 1102 亞泥 | B115: 遠東新世紀股 遠東新世紀股 | C115: 57891 | D115: 遠東新世紀股份有限公司職工退休基金管理委員會 | K115: 6278 台表科 | L115: 富邦人壽保險(股)蔡明興 | M115: 5300 | N115: 富邦人壽保險 | O115: =IFERROR(VLOOKUP(K115,股價!A:B,2,0)*M115,"") -> 504560 | P115: =IF(O115="","",RANK(O115,$O$2:$O$1000)) -> 114
A116: 1102 亞泥 | B116: 遠鼎投資(股) 徐旭東 | C116: 54202 | D116: 遠鼎投資 | K116: 1305 華夏 | L116: 富邦人壽保險(股)蔡明興 | M116: 20770 | N116: 富邦人壽保險 | O116: =IFERROR(VLOOKUP(K116,股價!A:B,2,0)*M116,"") -> 491210.5 | P116: =IF(O116="","",RANK(O116,$O$2:$O$1000)) -> 115
A117: 1102 亞泥 | B117: 歐晉德 歐晉德 | C117: 0 | D117: 歐晉德 | K117: 4137 麗豐-KY | L117: 富邦人壽保險股份富邦人壽保險 | M117: 2070 | N117: 富邦人壽保險股份有限公司全權委託復華投信投資專帳戶 | O117: =IFERROR(VLOOKUP(K117,股價!A:B,2,0)*M117,"") -> 480240 | P117: =IF(O117="","",RANK(O117,$O$2:$O$1000)) -> 116
A118: 1102 亞泥 | B118: 薛琦 薛琦 | C118: 0 | D118: 薛琦 | K118: 8462 柏文 | L118: 富邦人壽保險(股)蔡明興 | M118: 3339 | N118: 富邦人壽保險 | O118: =IFERROR(VLOOKUP(K118,股價!A:B,2,0)*M118,"") -> 479146.5 | P118: =IF(O118="","",RANK(O118,$O$2:$O$1000)) -> 117
A119: 1103 嘉泥 | B119: Howard Pan Howard Pan | C119: 0 | D119: Howard Pan | K119: 9924 福興 | L119: 富邦人壽保險(股)富邦人壽保險 | M119: 10886 | N119: 富邦人壽保險 | O119: =IFERROR(VLOOKUP(K119,股價!A:B,2,0)*M119,"") -> 476806.8 | P119: =IF(O119="","",RANK(O119,$O$2:$O$1000)) -> 118
A120: 1103 嘉泥 | B120: _大股東合計1 | C120: 0 | K120: 8436 大江 | L120: 富邦人壽保險(股)富邦人壽保險 | M120: 2619 | N120: 富邦人壽保險 | O120: =IFERROR(VLOOKUP(K120,股價!A:B,2,0)*M120,"") -> 463563 | P120: =IF(O120="","",RANK(O120,$O$2:$O$1000)) -> 119
A121: 1103 嘉泥 | B121: _大股東合計2 含沿用資料 | C121: 237100 | K121: 6192 巨路 | L121: 富邦人壽保險(股)鄭本源 | M121: 6221 | N121: 富邦人壽保險 | O121: =IFERROR(VLOOKUP(K121,股價!A:B,2,0)*M121,"") -> 459109.8 | P121: =IF(O121="","",RANK(O121,$O$2:$O$1000)) -> 120
A122: 1103 嘉泥 | B122: _經理人合計 | C122: 791 | K122: 9958 世紀鋼 | L122: 富邦人壽保險(股)富邦人壽保險 | M122: 4559 | N122: 富邦人壽保險 | O122: =IFERROR(VLOOKUP(K122,股價!A:B,2,0)*M122,"") -> 450885.1 | P122: =IF(O122="","",RANK(O122,$O$2:$O$1000)) -> 121
A123: 1103 嘉泥 | B123: _董 事合計 | C123: 132871 | K123: 8039 台虹 | L123: 富邦人壽保險(股)蔡明興 | M123: 10453 | N123: 富邦人壽保險 | O123: =IFERROR(VLOOKUP(K123,股價!A:B,2,0)*M123,"") -> 435890.1 | P123: =IF(O123="","",RANK(O123,$O$2:$O$1000)) -> 122
A124: 1103 嘉泥 | B124: _董監事合計 | C124: 132871 | K124: 1227 佳格 | L124: 富邦人壽保險(股)蔡明興 | M124: 10661 | N124: 富邦人壽保險 | O124: =IFERROR(VLOOKUP(K124,股價!A:B,2,0)*M124,"") -> 434968.8 | P124: =IF(O124="","",RANK(O124,$O$2:$O$1000)) -> 123
A125: 1103 嘉泥 | B125: _監察人合計 | C125: 0 | K125: 1702 南僑 | L125: 富邦人壽託野村投富邦人壽託野 | M125: 8359 | N125: 富邦人壽保險(股)公司全權委託野村投信 | O125: =IFERROR(VLOOKUP(K125,股價!A:B,2,0)*M125,"") -> 427980.8 | P125: =IF(O125="","",RANK(O125,$O$2:$O$1000)) -> 124
A126: 1103 嘉泥 | B126: 王立心 王立心 | C126: 311 | D126: 王立心 | K126: 3708 上緯投控 | L126: 富邦人壽保險(股)富邦人壽保險 | M126: 4205 | N126: 富邦人壽保險 | O126: =IFERROR(VLOOKUP(K126,股價!A:B,2,0)*M126,"") -> 401157 | P126: =IF(O126="","",RANK(O126,$O$2:$O$1000)) -> 125
A127: 1103 嘉泥 | B127: 台灣水泥(股) 張安平 | C127: 27419 | D127: 台灣水泥 | K127: 8916 光隆 | L127: 富邦人壽保險(股)蔡明興 | M127: 7441 | N127: 富邦人壽保險 | O127: =IFERROR(VLOOKUP(K127,股價!A:B,2,0)*M127,"") -> 387676.1 | P127: =IF(O127="","",RANK(O127,$O$2:$O$1000)) -> 126
A128: 1103 嘉泥 | B128: 佐佑投資(股) 陳曉凌 | C128: 14640 | D128: 佐佑投資 | K128: 3413 京鼎 | L128: 富邦人壽保險(股)富邦人壽保險 | M128: 2056 | N128: 富邦人壽保險 | O128: =IFERROR(VLOOKUP(K128,股價!A:B,2,0)*M128,"") -> 379332 | P128: =IF(O128="","",RANK(O128,$O$2:$O$1000)) -> 127
A129: 1103 嘉泥 | B129: 余曉芸 余曉芸 | C129: 84 | D129: 余曉芸 | K129: 6281 全國電 | L129: 富邦人壽保險(股)蔡明興 | M129: 4491 | N129: 富邦人壽保險 | O129: =IFERROR(VLOOKUP(K129,股價!A:B,2,0)*M129,"") -> 378142.2 | P129: =IF(O129="","",RANK(O129,$O$2:$O$1000)) -> 128
A130: 1103 嘉泥 | B130: 周月珍 周月珍 | C130: 118 | D130: 周月珍 | K130: 5457 宣德 | L130: 富邦人壽保險(股)蔡明興 | M130: 7415 | N130: 富邦人壽保險 | O130: =IFERROR(VLOOKUP(K130,股價!A:B,2,0)*M130,"") -> 373716 | P130: =IF(O130="","",RANK(O130,$O$2:$O$1000)) -> 129
A131: 1103 嘉泥 | B131: 林伯謙 林伯謙 | C131: 77 | D131: 林伯謙 | K131: 4532 瑞智 | L131: 富邦人壽保險(股)蔡明興 | M131: 20400 | N131: 富邦人壽保險 | O131: =IFERROR(VLOOKUP(K131,股價!A:B,2,0)*M131,"") -> 369240 | P131: =IF(O131="","",RANK(O131,$O$2:$O$1000)) -> 130
A132: 1103 嘉泥 | B132: 林寶珠 林寶珠 | C132: 0 | D132: 林寶珠 | K132: 3217 優群 | L132: 富邦人壽保險(股)蔡明興 | M132: 3600 | N132: 富邦人壽保險 | O132: =IFERROR(VLOOKUP(K132,股價!A:B,2,0)*M132,"") -> 367200 | P132: =IF(O132="","",RANK(O132,$O$2:$O$1000)) -> 131
A133: 1103 嘉泥 | B133: 松佐投資(股) 張永平 | C133: 68780 | D133: 松佐投資 | K133: 3526 凡甲 | L133: 富邦人壽保險(股)蔡明興 | M133: 2707 | N133: 富邦人壽保險 | O133: =IFERROR(VLOOKUP(K133,股價!A:B,2,0)*M133,"") -> 364091.5 | P133: =IF(O133="","",RANK(O133,$O$2:$O$1000)) -> 132
A134: 1103 嘉泥 | B134: 康浩實業(股) 張仙平 | C134: 17267 | D134: 康浩實業 | K134: 6732 昇佳電子 | L134: 富邦人壽保險(股)富邦人壽保險 | M134: 1109 | N134: 富邦人壽保險 | O134: =IFERROR(VLOOKUP(K134,股價!A:B,2,0)*M134,"") -> 363752 | P134: =IF(O134="","",RANK(O134,$O$2:$O$1000)) -> 133
A135: 1103 嘉泥 | B135: 張永平 張永平 | C135: 41748 | D135: 張永平 | K135: 2536 宏普 | L135: 富邦人壽保險(股)蔡明興 | M135: 14215 | N135: 富邦人壽保險 | O135: =IFERROR(VLOOKUP(K135,股價!A:B,2,0)*M135,"") -> 362482.5 | P135: =IF(O135="","",RANK(O135,$O$2:$O$1000)) -> 134
A136: 1103 嘉泥 | B136: 張武田 張武田 | C136: 57 | D136: 張武田 | K136: 4164 承業醫 | L136: 富邦人壽保險(股)蔡明興 | M136: 5390 | N136: 富邦人壽保險 | O136: =IFERROR(VLOOKUP(K136,股價!A:B,2,0)*M136,"") -> 360591 | P136: =IF(O136="","",RANK(O136,$O$2:$O$1000)) -> 135
A137: 1103 嘉泥 | B137: 張剛綸 張剛綸 | C137: 4808 | D137: 張剛綸 | K137: 3714 富采 | L137: 富邦人壽保險(股)蔡明興 | M137: 7500 | N137: 富邦人壽保險 | O137: =IFERROR(VLOOKUP(K137,股價!A:B,2,0)*M137,"") -> 357000 | P137: =IF(O137="","",RANK(O137,$O$2:$O$1000)) -> 136
A138: 1103 嘉泥 | B138: 陳文婉 陳文婉 | C138: 0 | D138: 陳文婉 | K138: 6789 采鈺 | L138: 富邦人壽保險(股)富邦人壽保險 | M138: 1700 | N138: 富邦人壽保險 | O138: =IFERROR(VLOOKUP(K138,股價!A:B,2,0)*M138,"") -> 353600 | P138: =IF(O138="","",RANK(O138,$O$2:$O$1000)) -> 137
A139: 1103 嘉泥 | B139: 陳國儀 陳國儀 | C139: 0 | D139: 陳國儀 | K139: 6284 佳邦 | L139: 富邦人壽保險(股)蔡明興 | M139: 6515 | N139: 富邦人壽保險 | O139: =IFERROR(VLOOKUP(K139,股價!A:B,2,0)*M139,"") -> 351158.5 | P139: =IF(O139="","",RANK(O139,$O$2:$O$1000)) -> 138
A140: 1103 嘉泥 | B140: 陳啟德 陳啟德 | C140: 693 | D140: 陳啟德 | K140: 1701 中化 | L140: 富邦人壽保險(股)蔡明興 | M140: 12766 | N140: 富邦人壽保險 | O140: =IFERROR(VLOOKUP(K140,股價!A:B,2,0)*M140,"") -> 329362.8 | P140: =IF(O140="","",RANK(O140,$O$2:$O$1000)) -> 139
A141: 1103 嘉泥 | B141: 詞閎(股) 詞閎(股) | C141: 170 | D141: 詞閎股份有限公司 | K141: 6416 瑞祺電通 | L141: 富邦人壽保險(股)富邦人壽保險 | M141: 3400 | N141: 富邦人壽保險 | O141: =IFERROR(VLOOKUP(K141,股價!A:B,2,0)*M141,"") -> 328780 | P141: =IF(O141="","",RANK(O141,$O$2:$O$1000)) -> 140
A142: 1103 嘉泥 | B142: 馮文裕 馮文裕 | C142: 44 | D142: 馮文裕 | K142: 6166 凌華 | L142: 富邦人壽保險(股)富邦人壽保險 | M142: 4941 | N142: 富邦人壽保險 | O142: =IFERROR(VLOOKUP(K142,股價!A:B,2,0)*M142,"") -> 297448.2 | P142: =IF(O142="","",RANK(O142,$O$2:$O$1000)) -> 141
A143: 1103 嘉泥 | B143: 黃華宙 黃華宙 | C143: 100 | D143: 黃華宙 | K143: 9905 大華 | L143: 富邦人壽保險(股)蔡明興 | M143: 11632 | N143: 富邦人壽保險 | O143: =IFERROR(VLOOKUP(K143,股價!A:B,2,0)*M143,"") -> 297197.6 | P143: =IF(O143="","",RANK(O143,$O$2:$O$1000)) -> 142
A144: 1103 嘉泥 | B144: 達和航運(股) 蔡立文 | C144: 25761 | D144: 達和航運 | K144: 1583 程泰 | L144: 富邦人壽保險(股)富邦人壽保險 | M144: 4264 | N144: 富邦人壽保險 | O144: =IFERROR(VLOOKUP(K144,股價!A:B,2,0)*M144,"") -> 283982.4 | P144: =IF(O144="","",RANK(O144,$O$2:$O$1000)) -> 143
A145: 1103 嘉泥 | B145: 嘉(王民)(股) 嘉(王民)(股) | C145: 865 | D145: 嘉(王民)股份有限公司 | K145: 1597 直得 | L145: 富邦人壽保險(股)蔡明興 | M145: 3473 | N145: 富邦人壽保險 | O145: =IFERROR(VLOOKUP(K145,股價!A:B,2,0)*M145,"") -> 256654.7 | P145: =IF(O145="","",RANK(O145,$O$2:$O$1000)) -> 144
A146: 1103 嘉泥 | B146: 嘉利實業(股) 辜懷如 | C146: 13151 | D146: 嘉利實業 | K146: 4540 全球傳動 | L146: 富邦人壽保險(股)蔡明興 | M146: 6255 | N146: 富邦人壽保險 | O146: =IFERROR(VLOOKUP(K146,股價!A:B,2,0)*M146,"") -> 253640.25 | P146: =IF(O146="","",RANK(O146,$O$2:$O$1000)) -> 145
A147: 1103 嘉泥 | B147: 嘉泥基金 張剛綸 | C147: 14843 | D147: 嘉新兆福文化基金會 | K147: 4163 鐿鈦 | L147: 富邦人壽保險(股)蔡明興 | M147: 1825 | N147: 富邦人壽保險 | O147: =IFERROR(VLOOKUP(K147,股價!A:B,2,0)*M147,"") -> 249112.5 | P147: =IF(O147="","",RANK(O147,$O$2:$O$1000)) -> 146
A148: 1103 嘉泥 | B148: 嘉新國際(股) Howard Pan | C148: 127370 | D148: 嘉新國際 | K148: 5285 界霖 | L148: 富邦人壽保險(股)富邦人壽保險 | M148: 3366 | N148: 富邦人壽保險 | O148: =IFERROR(VLOOKUP(K148,股價!A:B,2,0)*M148,"") -> 241005.6 | P148: =IF(O148="","",RANK(O148,$O$2:$O$1000)) -> 147
A149: 1103 嘉泥 | B149: 嘉新國際(股) 劉奕成 | C149: 127370 | D149: 嘉新國際 | K149: 4535 至興 | L149: 富邦人壽保險(股)蔡明興 | M149: 5695 | N149: 富邦人壽保險 | O149: =IFERROR(VLOOKUP(K149,股價!A:B,2,0)*M149,"") -> 224383 | P149: =IF(O149="","",RANK(O149,$O$2:$O$1000)) -> 148
A150: 1103 嘉泥 | B150: 劉奕成 劉奕成 | C150: 0 | D150: 劉奕成 | K150: 8437 大地-KY | L150: 富邦人壽保險(股)蔡明興 | M150: 1966 | N150: 富邦人壽保險 | O150: =IFERROR(VLOOKUP(K150,股價!A:B,2,0)*M150,"") -> 208396 | P150: =IF(O150="","",RANK(O150,$O$2:$O$1000)) -> 149
A151: 1103 嘉泥 | B151: 蘇瓜藤 蘇瓜藤 | C151: 0 | D151: 蘇瓜藤 | K151: 3611 鼎翰 | L151: 富邦人壽保險(股)蔡明興 | M151: 828 | N151: 富邦人壽保險 | O151: =IFERROR(VLOOKUP(K151,股價!A:B,2,0)*M151,"") -> 195408 | P151: =IF(O151="","",RANK(O151,$O$2:$O$1000)) -> 150
A152: 1103 嘉泥 | B152: 顧國輝 顧國輝 | C152: 13491 | D152: 顧國輝 | K152: 8227 巨有科技 | L152: 富邦人壽保險(股)富邦人壽保險 | M152: 1083 | N152: 富邦人壽保險 | O152: =IFERROR(VLOOKUP(K152,股價!A:B,2,0)*M152,"") -> 188442 | P152: =IF(O152="","",RANK(O152,$O$2:$O$1000)) -> 151
A153: 1104 環泥 | B153: _大股東合計1 | C153: 50888 | K153: 6120 達運 | L153: 富邦人壽保險(股)蔡明興 | M153: 18300 | N153: 富邦人壽保險 | O153: =IFERROR(VLOOKUP(K153,股價!A:B,2,0)*M153,"") -> 186660 | P153: =IF(O153="","",RANK(O153,$O$2:$O$1000)) -> 152
A154: 1104 環泥 | B154: _大股東合計2 含沿用資料 | C154: 178967 | K154: 6104 創惟 | L154: 富邦人壽保險(股)富邦人壽保險 | M154: 1727 | N154: 富邦人壽保險 | O154: =IFERROR(VLOOKUP(K154,股價!A:B,2,0)*M154,"") -> 182198.5 | P154: =IF(O154="","",RANK(O154,$O$2:$O$1000)) -> 153
A155: 1104 環泥 | B155: _經理人合計 | C155: 152 | K155: 1530 亞崴 | L155: 富邦人壽保險(股)富邦人壽保險 | M155: 5457 | N155: 富邦人壽保險 | O155: =IFERROR(VLOOKUP(K155,股價!A:B,2,0)*M155,"") -> 177898.2 | P155: =IF(O155="","",RANK(O155,$O$2:$O$1000)) -> 154
A156: 1104 環泥 | B156: _董 事合計 | C156: 157901 | K156: 6541 泰福-KY | L156: 富邦人壽保險(股)蔡明興 | M156: 2232 | N156: 富邦人壽保險 | O156: =IFERROR(VLOOKUP(K156,股價!A:B,2,0)*M156,"") -> 176328 | P156: =IF(O156="","",RANK(O156,$O$2:$O$1000)) -> 155
A157: 1104 環泥 | B157: _董監事合計 | C157: 157901 | K157: 2062 橋椿 | L157: 富邦人壽保險(股)蔡明興 | M157: 8150 | N157: 富邦人壽保險 | O157: =IFERROR(VLOOKUP(K157,股價!A:B,2,0)*M157,"") -> 173595 | P157: =IF(O157="","",RANK(O157,$O$2:$O$1000)) -> 156
A158: 1104 環泥 | B158: _監察人合計 | C158: 0 | K158: 4401 東隆興 | L158: 富邦人壽保險(股)蔡明興 | M158: 5402 | N158: 富邦人壽保險 | O158: =IFERROR(VLOOKUP(K158,股價!A:B,2,0)*M158,"") -> 145854 | P158: =IF(O158="","",RANK(O158,$O$2:$O$1000)) -> 157
A159: 1104 環泥 | B159: 升元投資(股) 侯智升 | C159: 65256 | D159: 升元投資 | K159: 4572 駐龍 | L159: 富邦人壽保險(股)富邦人壽保險 | M159: 915 | N159: 富邦人壽保險 | O159: =IFERROR(VLOOKUP(K159,股價!A:B,2,0)*M159,"") -> 142740 | P159: =IF(O159="","",RANK(O159,$O$2:$O$1000)) -> 158
A160: 1104 環泥 | B160: 王永春 王永春 | C160: 0 | D160: 王永春 | K160: 1558 伸興 | L160: 富邦人壽保險(股)蔡明興 | M160: 1239 | N160: 富邦人壽保險 | O160: =IFERROR(VLOOKUP(K160,股價!A:B,2,0)*M160,"") -> 134431.5 | P160: =IF(O160="","",RANK(O160,$O$2:$O$1000)) -> 159
A161: 1104 環泥 | B161: 宇聲投資(股) 侯智元 | C161: 64532 | D161: 宇聲投資 | K161: 6581 鋼聯 | L161: 富邦人壽保險(股)蔡明興 | M161: 1413 | N161: 富邦人壽保險 | O161: =IFERROR(VLOOKUP(K161,股價!A:B,2,0)*M161,"") -> 127452.6 | P161: =IF(O161="","",RANK(O161,$O$2:$O$1000)) -> 160
A162: 1104 環泥 | B162: 何奕達 何奕達 | C162: 0 | D162: 何奕達 | K162: 9951 皇田 | L162: 富邦人壽保險(股)蔡明興 | M162: 1797 | N162: 富邦人壽保險 | O162: =IFERROR(VLOOKUP(K162,股價!A:B,2,0)*M162,"") -> 126868.2 | P162: =IF(O162="","",RANK(O162,$O$2:$O$1000)) -> 161
A163: 1104 環泥 | B163: 吳尊賢文教公 吳尊賢文教公 | C163: 11670 | D163: 吳尊賢文教公益基金會 | K163: 1527 鑽全 | L163: 富邦人壽保險(股)富邦人壽保險 | M163: 2820 | N163: 富邦人壽保險 | O163: =IFERROR(VLOOKUP(K163,股價!A:B,2,0)*M163,"") -> 118017 | P163: =IF(O163="","",RANK(O163,$O$2:$O$1000)) -> 162
A164: 1104 環泥 | B164: 周士貴 周士貴 | C164: 0 | D164: 周士貴 | K164: 6195 詩肯 | L164: 富邦人壽保險(股)蔡明興 | M164: 2000 | N164: 富邦人壽保險 | O164: =IFERROR(VLOOKUP(K164,股價!A:B,2,0)*M164,"") -> 92300 | P164: =IF(O164="","",RANK(O164,$O$2:$O$1000)) -> 163
A165: 1104 環泥 | B165: 侯博義 侯博義 | C165: 50888 | D165: 侯博義 | K165: 6683 雍智科技 | L165: 富邦人壽保險(股)富邦人壽保險 | M165: 472 | N165: 富邦人壽保險 | O165: =IFERROR(VLOOKUP(K165,股價!A:B,2,0)*M165,"") -> 91332 | P165: =IF(O165="","",RANK(O165,$O$2:$O$1000)) -> 164
A166: 1104 環泥 | B166: 侯博裕 侯博裕 | C166: 17113 | D166: 侯博裕 | K166: 2419 仲琦 | L166: 富邦人壽保險(股)蔡明興 | M166: 3265 | N166: 富邦人壽保險 | O166: =IFERROR(VLOOKUP(K166,股價!A:B,2,0)*M166,"") -> 85216.5 | P166: =IF(O166="","",RANK(O166,$O$2:$O$1000)) -> 165
A167: 1104 環泥 | B167: 侯智元 侯智元 | C167: 35 | D167: 侯智元 | K167: 1338 廣華-KY | L167: 富邦人壽保險(股)富邦人壽保險 | M167: 1725 | N167: 富邦人壽保險 | O167: =IFERROR(VLOOKUP(K167,股價!A:B,2,0)*M167,"") -> 73485 | P167: =IF(O167="","",RANK(O167,$O$2:$O$1000)) -> 166
A168: 1104 環泥 | B168: 侯智升 侯智升 | C168: 117 | D168: 侯智升 | K168: 4198 欣大健康 | L168: 富邦人壽保險(股)蔡明興 | M168: 489 | N168: 富邦人壽保險 | O168: =IFERROR(VLOOKUP(K168,股價!A:B,2,0)*M168,"") -> 12225 | P168: =IF(O168="","",RANK(O168,$O$2:$O$1000)) -> 167
A169: 1104 環泥 | B169: 侯蘇錦倩 侯蘇錦倩 | C169: 22394 | D169: 侯蘇錦倩 | O169: =IFERROR(VLOOKUP(K169,股價!A:B,2,0)*M169,"") ->  | P169: =IF(O169="","",RANK(O169,$O$2:$O$1000)) -> 
A170: 1104 環泥 | B170: 高琮堯 高琮堯 | C170: 0 | D170: 高琮堯 | O170: =IFERROR(VLOOKUP(K170,股價!A:B,2,0)*M170,"") ->  | P170: =IF(O170="","",RANK(O170,$O$2:$O$1000)) -> 
A171: 1104 環泥 | B171: 張培德 張培德 | C171: 0 | D171: 張培德 | O171: =IFERROR(VLOOKUP(K171,股價!A:B,2,0)*M171,"") ->  | P171: =IF(O171="","",RANK(O171,$O$2:$O$1000)) -> 
A172: 1104 環泥 | B172: 陳景星 陳景星 | C172: 1121 | D172: 陳景星 | O172: =IFERROR(VLOOKUP(K172,股價!A:B,2,0)*M172,"") ->  | P172: =IF(O172="","",RANK(O172,$O$2:$O$1000)) -> 
A173: 1104 環泥 | B173: 凱笙投資(股) 凱笙投資(股) | C173: 185 | D173: 凱笙投資股份有限公司 | O173: =IFERROR(VLOOKUP(K173,股價!A:B,2,0)*M173,"") ->  | P173: =IF(O173="","",RANK(O173,$O$2:$O$1000)) -> 
A174: 1104 環泥 | B174: 博智投資(股) 侯博義 | C174: 27893 | D174: 博智投資 | O174: =IFERROR(VLOOKUP(K174,股價!A:B,2,0)*M174,"") ->  | P174: =IF(O174="","",RANK(O174,$O$2:$O$1000)) -> 
A175: 1104 環泥 | B175: 曾佩欣 曾佩欣 | C175: 0 | D175: 曾佩欣 | O175: =IFERROR(VLOOKUP(K175,股價!A:B,2,0)*M175,"") ->  | P175: =IF(O175="","",RANK(O175,$O$2:$O$1000)) -> 
A176: 1104 環泥 | B176: 渣打0600049662 渣打06000496 | C176: 20221 | D176: 渣打託管星展銀行－0600049662 | O176: =IFERROR(VLOOKUP(K176,股價!A:B,2,0)*M176,"") ->  | P176: =IF(O176="","",RANK(O176,$O$2:$O$1000)) -> 
A177: 1104 環泥 | B177: 匯豐託百達銀 匯豐託百達銀 | C177: 38867 | D177: 匯豐託管百達銀行投資專戶 | O177: =IFERROR(VLOOKUP(K177,股價!A:B,2,0)*M177,"") ->  | P177: =IF(O177="","",RANK(O177,$O$2:$O$1000)) -> 
A178: 1104 環泥 | B178: 新澤投資(有) 新澤投資(有) | C178: 445 | D178: 新澤投資 | O178: =IFERROR(VLOOKUP(K178,股價!A:B,2,0)*M178,"") ->  | P178: =IF(O178="","",RANK(O178,$O$2:$O$1000)) -> 
A179: 1104 環泥 | B179: 新翰投資(股) 陳景星 | C179: 220 | D179: 新翰投資 | O179: =IFERROR(VLOOKUP(K179,股價!A:B,2,0)*M179,"") ->  | P179: =IF(O179="","",RANK(O179,$O$2:$O$1000)) -> 
A180: 1104 環泥 | B180: 楊宗仁 楊宗仁 | C180: 0 | D180: 楊宗仁 | O180: =IFERROR(VLOOKUP(K180,股價!A:B,2,0)*M180,"") ->  | P180: =IF(O180="","",RANK(O180,$O$2:$O$1000)) -> 
A181: 1104 環泥 | B181: 詹志鴻 詹志鴻 | C181: 0 | D181: 詹志鴻 | O181: =IFERROR(VLOOKUP(K181,股價!A:B,2,0)*M181,"") ->  | P181: =IF(O181="","",RANK(O181,$O$2:$O$1000)) -> 
A182: 1104 環泥 | B182: 詹益仁 詹益仁 | C182: 0 | D182: 詹益仁 | O182: =IFERROR(VLOOKUP(K182,股價!A:B,2,0)*M182,"") ->  | P182: =IF(O182="","",RANK(O182,$O$2:$O$1000)) -> 
A183: 1104 環泥 | B183: 蔡玟昌 蔡玟昌 | C183: 0 | D183: 蔡玟昌 | O183: =IFERROR(VLOOKUP(K183,股價!A:B,2,0)*M183,"") ->  | P183: =IF(O183="","",RANK(O183,$O$2:$O$1000)) -> 
A184: 1104 環泥 | B184: 龍億昌砂石(股) 楊進松 | C184: 17814 | D184: 龍億昌砂石 | O184: =IFERROR(VLOOKUP(K184,股價!A:B,2,0)*M184,"") ->  | P184: =IF(O184="","",RANK(O184,$O$2:$O$1000)) -> 
A185: 1108 幸福 | B185: _大股東合計1 | C185: 52631 | O185: =IFERROR(VLOOKUP(K185,股價!A:B,2,0)*M185,"") ->  | P185: =IF(O185="","",RANK(O185,$O$2:$O$1000)) -> 
A186: 1108 幸福 | B186: _大股東合計2 含沿用資料 | C186: 196009 | O186: =IFERROR(VLOOKUP(K186,股價!A:B,2,0)*M186,"") ->  | P186: =IF(O186="","",RANK(O186,$O$2:$O$1000)) -> 
A187: 1108 幸福 | B187: _經理人合計 | C187: 14151 | O187: =IFERROR(VLOOKUP(K187,股價!A:B,2,0)*M187,"") ->  | P187: =IF(O187="","",RANK(O187,$O$2:$O$1000)) -> 
A188: 1108 幸福 | B188: _董 事合計 | C188: 16006 | O188: =IFERROR(VLOOKUP(K188,股價!A:B,2,0)*M188,"") ->  | P188: =IF(O188="","",RANK(O188,$O$2:$O$1000)) -> 
A189: 1108 幸福 | B189: _董監事合計 | C189: 16006 | O189: =IFERROR(VLOOKUP(K189,股價!A:B,2,0)*M189,"") ->  | P189: =IF(O189="","",RANK(O189,$O$2:$O$1000)) -> 
A190: 1108 幸福 | B190: _監察人合計 | C190: 0 | O190: =IFERROR(VLOOKUP(K190,股價!A:B,2,0)*M190,"") ->  | P190: =IF(O190="","",RANK(O190,$O$2:$O$1000)) -> 
A191: 1108 幸福 | B191: 大眾投資(股) 程海濱 | C191: 8712 | D191: 大眾投資 | O191: =IFERROR(VLOOKUP(K191,股價!A:B,2,0)*M191,"") ->  | P191: =IF(O191="","",RANK(O191,$O$2:$O$1000)) -> 
A192: 1108 幸福 | B192: 王志誠 王志誠 | C192: 0 | D192: 王志誠 | O192: =IFERROR(VLOOKUP(K192,股價!A:B,2,0)*M192,"") ->  | P192: =IF(O192="","",RANK(O192,$O$2:$O$1000)) -> 
A193: 1108 幸福 | B193: 王維仁 王維仁 | C193: 0 | D193: 王維仁 | O193: =IFERROR(VLOOKUP(K193,股價!A:B,2,0)*M193,"") ->  | P193: =IF(O193="","",RANK(O193,$O$2:$O$1000)) -> 
A194: 1108 幸福 | B194: 世易水泥(股) 陳兩傳 | C194: 6633 | D194: 世易水泥 | O194: =IFERROR(VLOOKUP(K194,股價!A:B,2,0)*M194,"") ->  | P194: =IF(O194="","",RANK(O194,$O$2:$O$1000)) -> 
A195: 1108 幸福 | B195: 世易水泥(股) 陳韻如 | C195: 6633 | D195: 世易水泥 | O195: =IFERROR(VLOOKUP(K195,股價!A:B,2,0)*M195,"") ->  | P195: =IF(O195="","",RANK(O195,$O$2:$O$1000)) -> 
A196: 1108 幸福 | B196: 永盛開發實業(股)陳兩傳 | C196: 22515 | D196: 永盛開發實業 | O196: =IFERROR(VLOOKUP(K196,股價!A:B,2,0)*M196,"") ->  | P196: =IF(O196="","",RANK(O196,$O$2:$O$1000)) -> 
A197: 1108 幸福 | B197: 立光建設(股) 立光建設(股) | C197: 22658 | D197: 立光建設 | O197: =IFERROR(VLOOKUP(K197,股價!A:B,2,0)*M197,"") ->  | P197: =IF(O197="","",RANK(O197,$O$2:$O$1000)) -> 
A198: 1108 幸福 | B198: 幸福建設(股) 幸福建設(股) | C198: 22091 | D198: 幸福建設 | O198: =IFERROR(VLOOKUP(K198,股價!A:B,2,0)*M198,"") ->  | P198: =IF(O198="","",RANK(O198,$O$2:$O$1000)) -> 
A199: 1108 幸福 | B199: 昌潤水資源(股) 劉俊麟 | C199: 30378 | D199: 昌潤水資源生技 | O199: =IFERROR(VLOOKUP(K199,股價!A:B,2,0)*M199,"") ->  | P199: =IF(O199="","",RANK(O199,$O$2:$O$1000)) -> 
A200: 1108 幸福 | B200: 邵揚威 邵揚威 | C200: 0 | D200: 邵揚威 | O200: =IFERROR(VLOOKUP(K200,股價!A:B,2,0)*M200,"") ->  | P200: =IF(O200="","",RANK(O200,$O$2:$O$1000)) -> 
... 4300 more rows

Sheet 股價
A1: 2023/05/16
A2: 證券代碼 | B2: 收盤價(元)
A3: 1101 台泥 | B3: 37.75
A4: 1102 亞泥 | B4: 44.35
A5: 1103 嘉泥 | B5: 19.9
A6: 1104 環泥 | B6: 27.6
A7: 1108 幸福 | B7: 15.3
A8: 1109 信大 | B8: 18.3
A9: 1110 東泥 | B9: 19.15
A10: 1201 味全 | B10: 20.15
A11: 1203 味王 | B11: 38.7
A12: 1210 大成 | B12: 53
A13: 1213 大飲 | B13: 6.81
A14: 1215 卜蜂 | B14: 92.6
A15: 1216 統一 | B15: 74.9
A16: 1217 愛之味 | B16: 11.25
A17: 1218 泰山 | B17: 31.1
A18: 1219 福壽 | B18: 20.85
A19: 1220 台榮 | B19: 15
A20: 1225 福懋油 | B20: 60.5
A21: 1227 佳格 | B21: 40.8
A22: 1229 聯華 | B22: 61.5
A23: 1231 聯華食 | B23: 91.5
A24: 1232 大統益 | B24: 151
A25: 1233 天仁 | B25: 34
A26: 1234 黑松 | B26: 37.35
A27: 1235 興泰 | B27: 72
A28: 1236 宏亞 | B28: 23.35
A29: 1240 茂生農經 | B29: 45.45
A30: 1256 鮮活果汁-KY | B30: 318
A31: 1258 其祥-KY | B31: 26.85
A32: 1259 安心 | B32: 75.8
A33: 1264 德麥 | B33: 282
A34: 1268 漢來美食 | B34: 164
A35: 1301 台塑 | B35: 93.1
A36: 1303 南亞 | B36: 78.8
A37: 1304 台聚 | B37: 23.2
A38: 1305 華夏 | B38: 23.65
A39: 1307 三芳 | B39: 22.6
A40: 1308 亞聚 | B40: 25.9
A41: 1309 台達化 | B41: 19.85
A42: 1310 台苯 | B42: 16.3
A43: 1312 國喬 | B43: 19.05
A44: 1313 聯成 | B44: 14.25
A45: 1314 中石化 | B45: 9.87
A46: 1315 達新 | B46: 70.1
A47: 1316 上曜 | B47: 13.2
A48: 1319 東陽 | B48: 48.2
A49: 1321 大洋 | B49: 34.15
A50: 1323 永裕 | B50: 32.95
A51: 1324 地球 | B51: 11.45
A52: 1325 恒大 | B52: 23.5
A53: 1326 台化 | B53: 69.1
A54: 1336 台翰 | B54: 24.75
A55: 1337 再生-KY | B55: 8.45
A56: 1338 廣華-KY | B56: 42.6
A57: 1339 昭輝 | B57: 43.6
A58: 1340 勝悅-KY | B58: 13.5
A59: 1341 富林-KY | B59: 70
A60: 1342 八貫 | B60: 127.5
A61: 1402 遠東新 | B61: 31.95
A62: 1409 新纖 | B62: 16.95
A63: 1410 南染 | B63: 37.5
A64: 1413 宏洲 | B64: 9.14
A65: 1414 東和 | B65: 16.85
A66: 1416 廣豐 | B66: 11.75
A67: 1417 嘉裕 | B67: 13.3
A68: 1418 東華 | B68: 15.1
A69: 1419 新紡 | B69: 41.2
A70: 1423 利華 | B70: 23.1
A71: 1432 大魯閣 | B71: 15.55
A72: 1434 福懋 | B72: 27.75
A73: 1435 中福 | B73: 26.3
A74: 1436 華友聯 | B74: 57.9
A75: 1437 勤益控 | B75: 28.3
A76: 1438 三地開發 | B76: 30.85
A77: 1439 雋揚 | B77: 22.3
A78: 1440 南紡 | B78: 16.15
A79: 1441 大東 | B79: 8.23
A80: 1442 名軒 | B80: 32.25
A81: 1443 立益物流 | B81: 28.9
A82: 1444 力麗 | B82: 10.4
A83: 1445 大宇 | B83: 20.2
A84: 1446 宏和 | B84: 30.75
A85: 1447 力鵬 | B85: 7.8
A86: 1449 佳和 | B86: 15.05
A87: 1451 年興 | B87: 20.75
A88: 1452 宏益 | B88: 17.55
A89: 1453 大將 | B89: 15
A90: 1454 台富 | B90: 15.9
A91: 1455 集盛 | B91: 10.2
A92: 1456 怡華 | B92: 16.65
A93: 1457 宜進 | B93: 18.65
A94: 1459 聯發 | B94: 9
A95: 1460 宏遠 | B95: 7.97
A96: 1463 強盛 | B96: 14.55
A97: 1464 得力 | B97: 15
A98: 1465 偉全 | B98: 14.35
A99: 1466 聚隆 | B99: 11.5
A100: 1467 南緯 | B100: 11.5
A101: 1468 昶和 | B101: 14.75
A102: 1470 大統新創 | B102: 20.2
A103: 1471 首利 | B103: 8.97
A104: 1472 三洋實業 | B104: 30.65
A105: 1473 台南 | B105: 23.9
A106: 1474 弘裕 | B106: 12.2
A107: 1475 業旺 | B107: 56.3
A108: 1476 儒鴻 | B108: 479
A109: 1477 聚陽 | B109: 225.5
A110: 1503 士電 | B110: 115
A111: 1504 東元 | B111: 47
A112: 1506 正道 | B112: 19.25
A113: 1512 瑞利 | B113: 13.35
A114: 1513 中興電 | B114: 105
A115: 1514 亞力 | B115: 47.75
A116: 1515 力山 | B116: 29.15
A117: 1516 川飛 | B117: 20.5
A118: 1517 利奇 | B118: 18.55
A119: 1519 華城 | B119: 109.5
A120: 1521 大億 | B120: 37.55
A121: 1522 堤維西 | B121: 28.5
A122: 1524 耿鼎 | B122: 22.25
A123: 1525 江申 | B123: 78
A124: 1526 日馳 | B124: 40.3
A125: 1527 鑽全 | B125: 41.85
A126: 1528 恩德 | B126: 11.35
A127: 1529 樂事綠能 | B127: 36.45
A128: 1530 亞崴 | B128: 32.6
A129: 1531 高林股 | B129: 14.25
A130: 1532 勤美 | B130: 33.85
A131: 1533 車王電 | B131: 53.9
A132: 1535 中宇 | B132: 52.7
A133: 1536 和大 | B133: 70.7
A134: 1537 廣隆 | B134: 139
A135: 1538 正峰 | B135: 9
A136: 1539 巨庭 | B136: 27.75
A137: 1540 喬福 | B137: 16.65
A138: 1541 錩泰 | B138: 34.35
A139: 1558 伸興 | B139: 108.5
A140: 1560 中砂 | B140: 111
A141: 1565 精華 | B141: 237.5
A142: 1568 倉佑 | B142: 24.5
A143: 1569 濱川 | B143: 22.4
A144: 1570 力肯 | B144: 18.3
A145: 1580 新麥 | B145: 121
A146: 1582 信錦 | B146: 59.1
A147: 1583 程泰 | B147: 66.6
A148: 1584 精剛 | B148: 35.7
A149: 1586 和勤 | B149: 34.3
A150: 1587 吉茂 | B150: 22.15
A151: 1589 永冠-KY | B151: 76.9
A152: 1590 亞德客-KY | B152: 1060
A153: 1591 駿吉-KY | B153: 27.7
A154: 1593 祺驊 | B154: 72.6
A155: 1595 川寶 | B155: 38.65
A156: 1597 直得 | B156: 73.9
A157: 1598 岱宇 | B157: 40.8
A158: 1599 宏佳騰 | B158: 37.55
A159: 1603 華電 | B159: 26.85
A160: 1604 聲寶 | B160: 26.6
A161: 1605 華新 | B161: 46.6
A162: 1608 華榮 | B162: 18.35
A163: 1609 大亞 | B163: 30.6
A164: 1611 中電 | B164: 18.1
A165: 1612 宏泰 | B165: 22.4
A166: 1614 三洋電 | B166: 36.85
A167: 1615 大山 | B167: 36.5
A168: 1616 億泰 | B168: 9.37
A169: 1617 榮星 | B169: 15.3
A170: 1618 合機 | B170: 18.8
A171: 1626 艾美特-KY | B171: 18.75
A172: 1701 中化 | B172: 25.8
A173: 1702 南僑 | B173: 51.2
A174: 1707 葡萄王 | B174: 175
A175: 1708 東鹼 | B175: 36
A176: 1709 和益 | B176: 25.25
A177: 1710 東聯 | B177: 21.1
A178: 1711 永光 | B178: 20.55
A179: 1712 興農 | B179: 35.25
A180: 1713 國化 | B180: 30
A181: 1714 和桐 | B181: 9.22
A182: 1717 長興 | B182: 32.15
A183: 1718 中纖 | B183: 8.16
A184: 1720 生達 | B184: 68.1
A185: 1721 三晃 | B185: 16
A186: 1722 台肥 | B186: 59.8
A187: 1723 中碳 | B187: 112
A188: 1725 元禎 | B188: 23.5
A189: 1726 永記 | B189: 74.9
A190: 1727 中華化 | B190: 37.5
A191: 1730 花仙子 | B191: 58.8
A192: 1731 美吾華 | B192: 23.3
A193: 1732 毛寶 | B193: 27
A194: 1733 五鼎 | B194: 26.9
A195: 1734 杏輝 | B195: 32.8
A196: 1735 日勝化 | B196: 17.5
A197: 1736 喬山 | B197: 61.2
A198: 1737 臺鹽 | B198: 33.75
A199: 1742 台蠟 | B199: 17.7
A200: 1752 南光 | B200: 68.1
... 1597 more rows
